Workbook

Sheet Comp Depr Rates Sept 07 (hidden)
B2: ACCOUNT | E2: ACQUISITION | F2: DEPRECIATION | G2: CURRENT | I2: PROPOSED
B3: NUMBER | C3: DESCRIPTION | E3: VALUE | F3: EXPENSE | G3: RATE | I3: RATE
A6: COMMON PLANT
B8: C390 | C8: STRUCTURES & IMPROVEMENTS | E8: =24169908.79+6691875.73+4817438.67 -> 35679223.19 | F8: =767991.49+212162.17+159051.27 -> 1139204.93 | G8: 3.17 | I8: 5.27
B9: C391.1 | C9: OFFICE FURNITURE & EQUIP > $20K | E9: =1264710.76+27763.32 -> 1292474.08 | F9: =51963.49+1143.85 -> 53107.34 | G9: 4.12 | I9: 5
B10: C391.1 | C10: OFFICE FURNITURE & EQUIP < $20K | E10: =591341.71+6407314.77 -> 6998656.48 | F10: =20199.13+226681.03 -> 246880.16 | G10: 3.57 | I10: 5
B11: C391.1 | C11: OFFICE FURNITURE & EQUIP - MODULAR | E11: 3171926.71 | F11: 149267.13 | G11: 4.71 | I11: 5
B12: C391.2 | C12: COMPUTER EQUIPMENT > $20K | E12: =247237.5+14142798.87 -> 14390036.37 | F12: =30981.73+1516897.5 -> 1547879.23 | G12: 13.1 | I12: 20
B13: C391.2 | C13: COMPUTER EQUIPMENT < $20K | E13: 34301041.63 | F13: 1595469.3 | G13: 5.26 | I13: 20
B14: C392 | C14: TRANSPORTATION EQUIPMENT | E14: 34354.14 | F14: 3123.1 | G14: 9.09 | I14: 9 | J14: to cc 300
B15: C393 | C15: STORES EQUIPMENT | E15: 38901.93 | F15: 1519.63 | G15: 3.12 | I15: 5
B16: C394 | C16: TOOLS, SHOP & GARAGE EQUIP. > $20K | E16: 799876.74 | F16: 17862.3 | G16: 3.92 | I16: 5
B17: C394 | C17: TOOLS, SHOP EQUIPMENT - 5 YEAR TOOLS | E17: 433573.46 | F17: 83215.26 | G17: 20 | I17: 5
B18: C396 | C18: POWER OPERATED EQUIPMENT | E18: 71433.61 | F18: -811.56 | G18: 14.28 | I18: 6 | J18: to cc 300
B19: C397 | C19: COMMUNICATION EQUIP - NON MOBILE | E19: =1320468.6+308764.68 -> 1629233.28 | F19: =55712.11+12735.35 -> 68447.46 | G19: 4.98 | I19: 6.67
B20: C397 | C20: COMMUNICATION EQUIP - MOBILE | E20: =22887609.88+31199.84+306088.68+20037.12+1563305.65+164054.46+157042.12+10963188.72+2135669.36 -> 38228195.83 | F20: =1138452.85+1553.75+15243.22+997.85+75987.34+8169.91+14501.18+519357.87+103280.36 -> 1877544.33 | G20: 4.35 | I20: 6.67
B21: C398 | C21: MISCELLANEOUS EQUIPMENT > $20K | E21: 26508.51 | F21: 1222.91 | G21: 4.58 | I21: 6.67
B22: C398 | C22: MISCELLANEOUS EQUIPMENT < $20K | E22: 402665.84 | F22: 16194.62 | G22: 4 | I22: 6.67
C24: TOTAL COMMON PLANT IN SERVICE | E24: =SUM(E8:E22) -> 137498101.8 | F24: =SUM(F8:F23) -> 6800126.14
A27: ELECTRIC PLANT
A29: STEAM PRODUCTION PLANT
B30: Colstrip Unit 1
B31: E311 | C31: STRUCTURES AND IMPROVEMENTS | E31: 7473867.75 | F31: 225493.59 | G31: 3.03 | I31: 3.91
B32: E312 | C32: BOILER PLANT EQUIPMENT | E32: 58163160.95 | F32: 1830647.86 | G32: 3.12 | I32: 3.64
B33: E314 | C33: TURBOGENERATOR EQUIPMENT | E33: 23438986.75 | F33: 745263.06 | G33: 3.29 | I33: 5.2
B34: E315 | C34: ACCESSORY ELECTRIC EQUIPMENT | E34: 7180435.19 | F34: 194505.7 | G34: 2.71 | I34: 1.97
B35: E316 | C35: MISC. POWER PLANT EQUIPMENT | E35: 799295.59 | F35: 31191.65 | G35: 3.87 | I35: 4.79
B36: Total Colstrip Unit 1 | E36: =SUM(E31:E35) -> 97055746.23 | F36: =SUM(F31:F35) -> 3027101.86
B40: Colstrip Unit 1-2 Common
B41: E311 | C41: STRUCTURES AND IMPROVEMENTS | E41: 31349014.09 | F41: 990611.78 | G41: 3.16 | I41: 2.77
B42: E312 | C42: BOILER PLANT EQUIPMENT | E42: 6485834.14 | F42: 239775.28 | G42: 3.18 | I42: 2.66
B43: E314 | C43: TURBOGENERATOR EQUIPMENT | E43: 3844102.75 | F43: 127266.97 | G43: 3.31 | I43: 2.65
B44: E315 | C44: ACCESSORY ELECTRIC EQUIPMENT | E44: 2375376.28 | F44: 72918.81 | G44: 3.07 | I44: 2.41
B45: E316 | C45: MISC. POWER PLANT EQUIPMENT | E45: 6289463.07 | F45: 242522.02 | G45: 3.82 | I45: 2.82
B46: Total Colstrip Unit 1-2 Common | E46: =SUM(E41:E45) -> 50343790.33 | F46: =SUM(F41:F45) -> 1673094.86
B48: Colstrip Unit 1-4 Common
B49: E316 | C49: MISC. POWER PLANT EQUIPMENT | E49: 251533.56 | F49: 6187.73 | G49: 2.46 | I49: 2.23
B50: Total Colstrip Unit 1-4 Common | E50: =SUM(E49) -> 251533.56 | F50: =SUM(F49) -> 6187.73
B52: Colstrip Unit 2
B53: E311 | C53: STRUCTURES AND IMPROVEMENTS | E53: 5860808.92 | F53: 178373.66 | G53: 3.06 | I53: 2.97
B54: E312 | C54: BOILER PLANT EQUIPMENT | E54: 49788214.15 | F54: 1537040.43 | G54: 3.05 | I54: 3.83
B55: E314 | C55: TURBOGENERATOR EQUIPMENT | E55: 20283195.82 | F55: 630472.38 | G55: 3.26 | I55: 5.03
B56: E315 | C56: ACCESSORY ELECTRIC EQUIPMENT | E56: 5087938.93 | F56: 136364.32 | G56: 2.69 | I56: 2.93
B57: E316 | C57: MISC. POWER PLANT EQUIPMENT | E57: 824073.98 | F57: 29981.87 | G57: 3.61 | I57: 4.93
B58: Total Colstrip Unit 2 | E58: =SUM(E53:E57) -> 81844231.8 | F58: =SUM(F53:F57) -> 2512232.66
B60: Colstrip Unit 3
B61: E311 | C61: STRUCTURES AND IMPROVEMENTS | E61: 29058975.96 | F61: 711672.75 | G61: 2.45 | I61: 2.8
B62: E312 | C62: BOILER PLANT EQUIPMENT | E62: 123772537.9 | F62: 3235545.9 | G62: 2.68 | I62: 2.81
B63: E314 | C63: TURBOGENERATOR EQUIPMENT | E63: 41474565.66 | F63: 1184354.66 | G63: 2.97 | I63: 3.77
B64: E315 | C64: ACCESSORY ELECTRIC EQUIPMENT | E64: 6460699.33 | F64: 159703.28 | G64: 2.47 | I64: 2.5
B65: E316 | C65: MISC. POWER PLANT EQUIPMENT | E65: 704856.98 | F65: 20402.42 | G65: 2.86 | I65: 3.69
B66: Total Colstrip Unit 3 | E66: =SUM(E61:E65) -> 201471635.8 | F66: =SUM(F61:F65) -> 5311679.01
B68: Colstrip Unit 3-4 Common
B69: E311 | C69: STRUCTURES AND IMPROVEMENTS | E69: 70574232.38 | F69: 1644884.93 | G69: 2.33 | I69: 2.53
B70: E312 | C70: BOILER PLANT EQUIPMENT | E70: 18727316.49 | F70: 468708.58 | G70: 2.48 | I70: 2.68
B71: E314 | C71: TURBOGENERATOR EQUIPMENT | E71: 10515.04 | F71: 305.47 | G71: 2.62 | I71: 49.28
B72: E315 | C72: ACCESSORY ELECTRIC EQUIPMENT | E72: 7652069.98 | F72: 176742.17 | G72: 2.31 | I72: 2.32
B73: E316 | C73: MISC. POWER PLANT EQUIPMENT | E73: 4613132.33 | F73: 129178.32 | G73: 2.79 | I73: 2.7
B74: Total Colstrip Unit 3-4 Common | E74: =SUM(E69:E73) -> 101577266.2 | F74: =SUM(F69:F73) -> 2419819.47
B77: Colstrip Unit 4
B78: E311 | C78: STRUCTURES AND IMPROVEMENTS | E78: 26600987.27 | F78: 675347.47 | G78: 2.54 | I78: 2.75
B79: E312 | C79: BOILER PLANT EQUIPMENT | E79: 108751248.9 | F79: 2979910.81 | G79: 2.75 | I79: 2.98
B80: E314 | C80: TURBOGENERATOR EQUIPMENT | E80: 37714990.91 | F80: 1113014.9 | G80: 2.94 | I80: 3.59
B81: E315 | C81: ACCESSORY ELECTRIC EQUIPMENT | E81: 5670535 | F81: 142891.61 | G81: 2.52 | I81: 2.54
B82: E316 | C82: MISC. POWER PLANT EQUIPMENT | E82: 902345.6 | F82: 25412.81 | G82: 2.79 | I82: 3.26
B83: Total Colstrip Unit 4 | E83: =SUM(E78:E82) -> 179640107.7 | F83: =SUM(F78:F82) -> 4936577.6
B85: Encogen
B86: E312 | C86: FUEL HOLDERS, PRODUCERS & ACCESS. | E86: 42748413.6 | F86: 1154207.17 | G86: 2.7 | I86: 3.27
B87: E314 | C87: GENERATORS | E87: 20449667.41 | F87: 527493.32 | G87: 2.59 | I87: 3.27
B88: E315 | C88: ACCESSORY ELECTRIC EQUIPMENT | E88: 1678558.68 | F88: 44146.09 | G88: 2.63 | I88: 2.64
B89: E316 | C89: MISC. POWER PLANT EQUIPMENT | E89: 1101157.33 | F89: 25873.53 | G89: 2.59 | I89: 6.84
B90: Total Encogen | E90: =SUM(E86:E89) -> 65977797.02 | F90: =SUM(F86:F89) -> 1751720.11
B92: EPCOR Frederickson
B93: E311 | C93: STRUCTURES & IMPROVEMENTS | E93: 6178022.75 | F93: 205728.16 | G93: 3.333 | I93: 3.74
B94: E312 | C94: FUEL HOLDERS, PRODUCERS & ACCESS. | E94: 17970988.13 | F94: 598433.87 | G94: 3.333 | I94: 3.89
B95: E314 | C95: GENERATORS | E95: 15800824.04 | F95: 526167.44 | G95: 3.333 | I95: 3.81
B96: E315 | C96: ACCESSORY ELECTRIC EQUIPMENT | E96: 962486.71 | F96: 32050.82 | G96: 3.333 | I96: 3.34
B97: E316 | C97: MISC. POWER PLANT EQUIPMENT | E97: 336377.91 | F97: 11201.38 | G97: 3.333 | I97: 3.84
B98: Total EPCOR Frederickson | E98: =SUM(E93:E97) -> 41248699.54 | F98: =SUM(F93:F97) -> 1373581.67
B100: Goldendale
B101: E311 | C101: STRUCTURES & IMPROVEMENTS | E101: 1843914 | F101: 6460.26 | G101: 1.39 | I101: 1.55
B102: E312 | C102: FUEL HOLDERS, PRODUCERS & ACCESS. | E102: 86510717 | F102: 303095.64 | G102: 1.39 | I102: 1.55
B103: E314 | C103: GENERATORS | E103: 88357071 | F103: 309564.45 | G103: 1.39 | I103: 1.55
B104: E315 | C104: ACCESSORY ELECTRIC EQUIPMENT | E104: 7300879 | F104: 25579.08 | G104: 1.39 | I104: 1.55
B105: E316 | C105: MISC. POWER PLANT EQUIPMENT | E105: 6163 | F105: 21.6 | G105: 1.39 | I105: 1.55
B106: Total Goldendale | E106: =SUM(E101:E105) -> 184018744 | F106: =SUM(F101:F105) -> 644721.03
B108: TOTAL STEAM PRODUCTION PLANT | E108: =SUM(E83,E74,E66,E58,E50,E46,E36,E90,E98,E106) -> 1003429552 | F108: =SUM(F83,F74,F66,F58,F50,F46,F36,F90,F98,F106) -> 23656716
A113: HYDROELECTRIC PRODUCTION PLANT
B114: Electron
B115: E331 | C115: STRUCTURES & IMPROVEMENTS | E115: 2460057.87 | F115: 97878.14 | G115: 4 | I115: 7.12
B116: E332 | C116: RESERVOIRS, DAMS & WATERWAYS | E116: 46695912.09 | F116: 1847260.03 | G116: 4 | I116: 7.15
B117: E333 | C117: WATER WHEELS, TURBINES & GENERATORS | E117: 2291034.35 | F117: 34869.32 | G117: 2.21 | I117: 6.7
B118: E334 | C118: ACCESSORY ELECTRIC EQUIPMENT | E118: 1793243.86 | F118: 53584.78 | G118: 3.01 | I118: 6.3
B119: E335 | C119: MISC. POWER PLANT EQUIPMENT | E119: 260144.6 | F119: 11244.23 | G119: 3.44 | I119: 7.3
B120: E335.1 | C120: MISCELLANEOUS TOOLS | E120: 627836.7 | F120: 27136.99 | G120: 3.44 | I120: 17.35
B121: E336 | C121: ROADS, RAILROADS & BRIDGES | E121: 492607.43 | F121: 11822.57 | G121: 2.4 | I121: 6.13
B122: Total Electron | E122: =SUM(E115:E121) -> 54620836.9 | F122: =SUM(F115:F121) -> 2083796.06
B124: Lower Baker
B125: E331 | C125: STRUCTURES & IMPROVEMENTS | E125: =3280717.56+3908.5 -> 3284626.06 | F125: =392931.09+470.58 -> 393401.67 | G125: 12.04 | I125: 0.81
B126: E332 | C126: RESERVOIRS, DAMS & WATERWAYS | E126: 14645854.02 | F126: 1414441.84 | G126: 10.65 | I126: 0.6
B127: E333 | C127: WATER WHEELS, TURBINES & GENERATORS | E127: 10022484.3 | F127: 425505.42 | G127: 4.25 | I127: 2
B128: E334 | C128: ACCESSORY ELECTRIC EQUIPMENT | E128: 1883879.27 | F128: 161268.19 | G128: 8.55 | I128: 1.34
B129: E335 | C129: MISC. POWER PLANT EQUIPMENT | E129: 634814.1 | F129: 54954.01 | G129: 8.68 | I129: 0.18
B130: E335.1 | C130: MISCELLANEOUS TOOLS | E130: 520794.71 | F130: 45083.68 | G130: 8.68 | I130: 4.21
B131: E336 | C131: ROADS, RAILROADS & BRIDGES | E131: 74593.13 | F131: 9578.19 | G131: 12.5 | I131: 0.45
B132: Total Lower Baker | E132: =SUM(E125:E131) -> 31067045.59 | F132: =SUM(F125:F131) -> 2504233
B134: Snoqualmie Unit 1
B135: E331 | C135: STRUCTURES & IMPROVEMENTS | E135: 3550855.62 | F135: 104147.36 | G135: 2.93 | I135: 2.24
B136: E332 | C136: RESERVOIRS, DAMS & WATERWAYS | E136: 584993.96 | F136: 12050.88 | G136: 2.06 | I136: 2.72
B137: E333 | C137: WATER WHEELS, TURBINES & GENERATORS | E137: 708781.31 | F137: 9922.94 | G137: 1.4 | I137: 1.61
B138: E334 | C138: ACCESSORY ELECTRIC EQUIPMENT | E138: 298571.16 | F138: 4903.62 | G138: 1.65 | I138: 1.69
B139: E335 | C139: MISC. POWER PLANT EQUIPMENT | E139: 1793.49 | F139: 42.22 | G139: 2.41 | I139: 0
B140: E335.1 | C140: MISCELLANEOUS TOOLS | E140: 357552.84 | F140: 8416.63 | G140: 2.41 | I140: 15.66
B141: E336 | C141: ROADS, RAILROADS & BRIDGES | E141: 39894.69 | F141: 442.84 | G141: 1.11 | I141: 0.6
B142: E338 | C142: EASEMENTS | E142: 32898.73 | F142: 1313.89 | G142: 3.55 | I142: 2.43
B143: Total Snoqualmie Unit 1 | E143: =SUM(E135:E142) -> 5575341.8 | F143: =SUM(F135:F142) -> 141240.38
B149: Snoqualmie Unit 2
B150: E331 | C150: STRUCTURES & IMPROVEMENTS | E150: 652002.48 | F150: 17302.27 | G150: 2.65 | I150: 1.98
B151: E332 | C151: RESERVOIRS, DAMS & WATERWAYS | E151: 1179902.74 | F151: 31385.41 | G151: 2.66 | I151: 2.17
B152: E333 | C152: WATER WHEELS, TURBINES & GENERATORS | E152: 5210196.53 | F152: 124523.68 | G152: 2.39 | I152: 3.24
B153: E334 | C153: ACCESSORY ELECTRIC EQUIPMENT | E153: 490371.62 | F153: 14269.79 | G153: 2.91 | I153: 1.66
B154: E335 | C154: MISC. POWER PLANT EQUIPMENT | E154: 4773.64 | F154: 144.16 | G154: 3.02 | I154: 3.48
B155: E335.1 | C155: MISCELLANEOUS TOOLS | E155: 66781 | F155: 2016.79 | G155: 3.02 | I155: 11.25
B156: E336 | C156: ROADS, RAILROADS & BRIDGES | E156: 287456.42 | F156: 5630.35 | G156: 1.96 | I156: 2.59
B157: Total Snoqualmie Unit 2 | E157: =SUM(E150:E156) -> 7891484.43 | F157: =SUM(F150:F156) -> 195272.45
B159: Upper Baker
B160: E331 | C160: STRUCTURES & IMPROVEMENTS | E160: 6208069.84 | F160: 665912.29 | G160: 13 | I160: 0.54
B161: E332 | C161: RESERVOIRS, DAMS & WATERWAYS | E161: 48037386.2 | F161: 4874401.61 | G161: 10.14 | I161: 0.36
B162: E333 | C162: WATER WHEELS, TURBINES & GENERATORS | E162: 8669934.54 | F162: 764688.22 | G162: 8.82 | I162: 0
B163: E334 | C163: ACCESSORY ELECTRIC EQUIPMENT | E163: 1769313.18 | F163: 160441.72 | G163: 9.09 | I163: 0.01
B164: E335 | C164: MISC. POWER PLANT EQUIPMENT | E164: 493379.6 | F164: 51347.57 | G164: 10.47 | I164: 2.13
B165: E335.1 | C165: MISCELLANEOUS TOOLS | E165: 273542.91 | F165: 28468.48 | G165: 10.47 | I165: 1.66
B166: E336 | C166: ROADS, RAILROADS & BRIDGES | E166: 645094.99 | F166: 35609.25 | G166: 5.52 | I166: 0
B167: Total Upper Baker | E167: =SUM(E160:E166) -> 66096721.26 | F167: =SUM(F160:F166) -> 6580869.14
B169: TOTAL HYDROELECTRIC PRODUCTION PLANT | E169: =SUM(E167,E157,E143,E132,E122) -> 165251430 | F169: =SUM(F167,F157,F143,F132,F122) -> 11505411.03
A172: OTHER PRODUCTION PLANT
B173: Crystal Mountain
B174: E341 | C174: STRUCTURES & IMPROVEMENTS | E174: 28241.57 | F174: 11.29 | G174: 0.04 | I174: 0
B175: E342 | C175: FUEL HOLDERS, PRODUCERS & ACCESS. | E175: 197234.51 | F175: 19743.17 | G175: 10.01 | I175: 4.32
B176: E344 | C176: GENERATORS | E176: 451571.96 | F176: 180.63 | G176: 0.04 | I176: 4.47
B177: E345 | C177: ACCESSORY ELECTRIC EQUIPMENT | E177: 84237.34 | F177: 1052.97 | G177: 1.25 | I177: 5.07
B178: E346.1 | C178: MISCELLANEOUS TOOLS | E178: 10385.31 | F178: 626.24 | G178: 6.03 | I178: 1.85
B179: Total Crystal Mountain | E179: =SUM(E174:E178) -> 771670.69 | F179: =SUM(F174:F178) -> 21614.3
B185: Encogen
B186: E341 | C186: STRUCTURES & IMPROVEMENTS | E186: 6595936.75 | F186: 178845.04 | G186: 2.7 | I186: 2.97
B187: E342 | C187: FUEL HOLDERS, PRODUCERS & ACCESS. | E187: 7998178.46 | F187: 207152.82 | G187: 2.59 | I187: 2.88
B188: E344 | C188: GENERATORS | E188: 70644953.32 | F188: 1857788.48 | G188: 2.63 | I188: 2.55
B189: E345 | C189: ACCESSORY ELECTRIC EQUIPMENT | E189: 2021517.63 | F189: 52963.76 | G189: 2.62 | I189: 6.45
B190: E346 | C190: MISC. POWER PLANT EQUIPMENT | E190: 1142596.92 | F190: 31381.59 | G190: 2.59 | I190: 2.91
B191: E346.1 | C191: MISCELLANEOUS TOOLS | E191: 43664.89 | F191: 1199.26 | G191: 2.59 | I191: 7.23
B192: Total Encogen | E192: =SUM(E186:E191) -> 88446847.97 | F192: =SUM(F186:F191) -> 2329330.95
B194: Frederickson 1
B195: E342 | C195: FUEL HOLDERS, PRODUCERS & ACCESS. | E195: 1804662.8 | F195: 60095.27 | G195: 3.333 | I195: 3.52
B196: E344 | C196: GENERATORS | E196: 29246324.17 | F196: 973822.74 | G196: 3.333 | I196: 3.34
B197: E345 | C197: ACCESSORY ELECTRIC EQUIPMENT | E197: 296766.72 | F197: 9882.34 | G197: 3.333 | I197: 3.34
B198: Total EPCOR Frederickson | E198: =SUM(E195:E197) -> 31347753.69 | F198: =SUM(F195:F197) -> 1043800.35
B200: Frederickson
B201: E341 | C201: STRUCTURES & IMPROVEMENTS | E201: 2344478.06 | F201: 56141.11 | G201: 2.41 | I201: 3.22
B202: E342 | C202: FUEL HOLDERS, PRODUCERS & ACCESS. | E202: 3702107.48 | F202: 64046.46 | G202: 1.73 | I202: 1.93
B203: E344 | C203: GENERATORS | E203: 24805307.3 | F203: 579030.46 | G203: 2.33 | I203: 2.48
B204: E345 | C204: ACCESSORY ELECTRIC EQUIPMENT | E204: 1943694.83 | F204: 743.75 | G204: 0.04 | I204: 6.75
B205: E346 | C205: MISC. POWER PLANT EQUIPMENT | E205: 172525.69 | F205: 5499.04 | G205: 3.5 | I205: 5.02
B206: E346.1 | C206: MISCELLANEOUS TOOLS | E206: 267633.83 | F206: 8530.48 | G206: 3.5 | I206: 3.94
B207: Total Frederickson | E207: =SUM(E201:E206) -> 33235747.19 | F207: =SUM(F201:F206) -> 713991.3
B209: Fredonia Unit 1&2
B210: E341 | C210: STRUCTURES & IMPROVEMENTS | E210: 3491408.04 | F210: 144515.95 | G210: 4.15 | I210: 4.16
B211: E342 | C211: FUEL HOLDERS, PRODUCERS & ACCESS. | E211: 3355684.73 | F211: 141945.47 | G211: 4.23 | I211: 4.75
B212: E344 | C212: GENERATORS | E212: 41422739.26 | F212: 845023.89 | G212: 2.04 | I212: 2.06
B213: E345 | C213: ACCESSORY ELECTRIC EQUIPMENT | E213: 884929.97 | F213: 25618.41 | G213: 2.91 | I213: 3.06
B214: E346 | C214: MISC. POWER PLANT EQUIPMENT | E214: 241975.23 | F214: 9993.58 | G214: 4.13 | I214: 3.9
B215: E346.1 | C215: MISCELLANEOUS TOOLS | E215: =182303.93+199927.61 -> 382231.54 | F215: =6874.34+8257.01 -> 15131.35 | G215: 4.13 | I215: 24.49
B216: E348 | C216: EASEMENTS | E216: 221928.75 | F216: 8863.29 | G216: 3.55 | I216: 3.82
B217: Total Fredonia Unit 1&2 | E217: =SUM(E210:E216) -> 50000897.52 | F217: =SUM(F210:F216) -> 1191091.94
B221: Goldendale
B222: E341 | C222: STRUCTURES & IMPROVEMENTS | E222: 33993049 | F222: 119096.74 | G222: 1.39 | I222: 1.55
B223: E342 | C223: FUEL HOLDERS, PRODUCERS & ACCESS. | E223: 1887875 | F223: 6614.28 | G223: 1.39 | I223: 1.55
B224: E344 | C224: GENERATORS | E224: =65688934.23+5008688.88 -> 70697623.11 | F224: =332449.35+1727267.16+8702.6 -> 2068419.11 | G224: 1.39 | I224: 1.55
B225: E345 | C225: ACCESSORY ELECTRIC EQUIPMENT | E225: 9468135 | F225: 33172.2 | G225: 1.39 | I225: 1.55
B226: E346 | C226: MISC. POWER PLANT EQUIPMENT | E226: 2134388 | F226: 7477.96 | G226: 1.39 | I226: 1.55
B227: Total Goldendale | E227: =SUM(E222:E226) -> 118181070.1 | F227: =SUM(F222:F226) -> 2234780.29
B229: Hopkins Ridge
B230: E341 | C230: STRUCTURES & IMPROVEMENTS | E230: 3818831.4 | F230: 162775 | G230: 4 | I230: 4.24
B231: E344 | C231: GENERATORS | E231: 145368923.7 | F231: 6196254.02 | G231: 4 | I231: 4.24
B232: E345 | C232: ACCESSORY ELECTRIC EQUIPMENT | E232: 16346021.27 | F232: 696737.6 | G232: 4 | I232: 4.24
B233: E346 | C233: MISC. POWER PLANT EQUIPMENT | E233: 291115.38 | F233: 12262.38 | G233: 4 | I233: 4.24
B234: Total Hopkins Ridge | E234: =SUM(E230:E233) -> 165824891.7 | F234: =SUM(F230:F233) -> 7068029
B236: Whitehorn Unit 2&3
B237: E341 | C237: STRUCTURES & IMPROVEMENTS | E237: 185229.75 | F237: 5815.91 | G237: 3.14 | I237: 7.69
B238: E342 | C238: FUEL HOLDERS, PRODUCERS & ACCESS. | E238: 134194.7 | F238: 5917.98 | G238: 4.41 | I238: 5.83
B239: E344 | C239: GENERATORS | E239: 41703.33 | F239: 2214.45 | G239: 5.31 | I239: 7.1
B240: E345 | C240: ACCESSORY ELECTRIC EQUIPMENT | E240: =177446.17+5695.01 -> 183141.18 | F240: =8180.27+262.54 -> 8442.81 | G240: 4.61 | I240: 5.02
B241: E346 | C241: MISC. POWER PLANT EQUIPMENT | E241: 50002.44 | F241: 2595.13 | G241: 5.19 | I241: 5.22
B242: E346.1 | C242: MISCELLANEOUS TOOLS | E242: =82611.12+35292.46+84225.97 -> 202129.55 | F242: =4287.52+1831.68+4047.59 -> 10166.79 | G242: 5.19 | I242: 12.61
B243: Total Whitehorn Unit 2&3 | E243: =SUM(E237:E242) -> 796400.95 | F243: =SUM(F237:F242) -> 35153.07
B245: Wild Horse
B246: E341 | C246: STRUCTURES & IMPROVEMENTS | E246: 4325730.13 | F246: 131185.55 | G246: 4 | I246: 4.29
B247: E344 | C247: GENERATORS | E247: 300074719.6 | F247: 9100304.8 | G247: 4 | I247: 4.27
B248: E345 | C248: ACCESSORY ELECTRIC EQUIPMENT | E248: 33733415.22 | F248: 1023026.42 | G248: 4 | I248: 4.29
B249: Total Wild Horse | E249: =SUM(E246:E248) -> 338133865 | F249: =SUM(F246:F248) -> 10254516.77
B251: TOTAL OTHER PRODUCTION PLANT | E251: =E179+E192+E198+E207+E217+E227+E234+E243+E249 -> 826739144.9 | F251: =F179+F192+F198+F207+F217+F227+F234+F243+F249 -> 24892307.97
... 254 more rows

Sheet Depreciation Recon (hidden)
B2: Financial Statements | D2: Depreciation Rate Comparison
A4: Common
A5: Balance as of 9/30/2007 | B5: 6849066.1 | D5: 6800126.14
A6: Reconciling Items:
A7: C392 - Aircraft, not included in depr study - group #s 101208-09 | D7: 50982.25
A8: C392 - cleared to cc300 | D8: -3123.1
A9: C396 - cleared to cc300 | D9: 811.56
A10: C399 - Asset Retirement Cost (ARO Asset) - Not Recoverable | D10: 269.25
B11: =SUM(B5:B10) -> 6849066.1 | D11: =SUM(D5:D10) -> 6849066.1
A13: Electric
A14: Balance as of 9/30/2007 | B14: 151384996.9 | D14: 150517255.1
A15: Reconciling Items:
A16: E331 - Group # 100054 WRG - 0 acqusition value | D16: 23.88
A17: E337 - Easement, group # 100970, not included in depr. study | D17: -145.99
A18: E344 - Group # 100736 - 0 acquisition value | D18: -114.29
A19: E347 - Easement group # 100125 and ARO group # 101103, not included in depreciation study | D19: 12628.97
A20: E358 - Group # 100167 - 0 acquisition value | D20: 2.47
A21: E372 - Dist Lease, not included in depr study - group #s 101085,86 | D21: -44880.44
A22: Asset Retirement Cost (ARO Asset) - no reclass | D22: 44939
A23: Misclass (adjustment) to balance to subledger | D23: 18953.27
A24: 403.1 ARO Depreciation (from E311 to E317) | D24: 23021
A25: 403.1 ARO Depreciation (from E355 to E359) | D25: 35354.75
A26: 403.1 ARO Depreciation (from E364 to E374) | D26: 57060.5
A27: 403.1 ARO Depreciation (from E368 to E374) | D27: 311164.5
A28: Manual depreciation accrual (E364, E365, E366, E377) | D28: 409734.16
B29: =SUM(B14:B28) -> 151384996.9 | C29: =SUM(C14:C28) -> 0 | D29: =SUM(D14:D28) -> 151384996.9
A31: Gas
A32: Balance as of 9/30/2007 | B32: 70510110.22 | D32: 68099230.84
A33: Reconciling Items:
A34: G366 - Gas Transmission not included in depr study | D34: -270.74
A35: G367 - Gas Transmission not included in depr study | D35: -29723.06
A36: G369 - Gas Transmission not included in depr study | D36: -132403.49
A37: G372 - Gas Transmission not included in depr study | D37: -7908.53
A38: G376 - Cathodic Protection, not included in depr study - group # 100933 | D38: 503793.61
A39: G380 - Cathodic Protection, not included in depr study - group # 100934 | D39: 380453.45
A40: G386 - Group # 100284 - 0 acquisition value. | D40: 397.45
A41: G386.2 Pipe & vents not included in depr study - group # 100779 | D41: 855661.81
A42: G386.3 Pipe & vents not included in depr study - group # 100780 | D42: 186708.08
A43: G386.5 Pipe & vents not included in depr study - group # 100818 | D43: -12547.93
A44: G392 - cleared to cc300 | D44: -0.03
A45: C386 - cleared to cc300 | D45: -72256.68
A46: Gas pipe & vents (cleared to regulatory asset) | D46: 131658.85
A47: 403.1 ARO Depreciation (from G376 to G388) | D47: 614403.38
A48: Manual depreciation accrual (G354) | D48: -7086.79
B49: =SUM(B32:B48) -> 70510110.22 | D49: =SUM(D32:D48) -> 70510110.22
A52: Notes:
A53: The following manual entries were made in the 4th quarter of 2006
A54: to reclass from 403 directly to 108 (for new and recalculated of AROs)
A56: From E364-group # 100177 to E374-group # 101135 | B56: 932231
A57: From E364-group # 100177 to E374-group # 101135 | B57: -726
A58: From E368-group # 100181 to E374-group # 101136 | B58: -1842
A59: From G376-group # 100900 to G388-group # 101106 | B59: -528028
A60: From G376-group # 100887 to G388-group # 101151 | B60: -432

Sheet Lead G
E1: Docket Numbers UE-17_____
E2: Exhibit No. ______ (KJB-5)
E3: PAGE 10.06
A4: PUGET SOUND ENERGY - GAS
A5: DEPRECIATION STUDY
A6: FOR THE TWELVE MONTHS ENDED SEPTEMBER 30, 2016
A7: 2017 GENERAL RATE CASE
D8: Per Public
A9: LINE | D9: Counsel
A10: NO. | B10: DESCRIPTION | C10: ACTUAL | D10: RESTATED | E10: ADJUSTMENT
A12: 1 | B12: 403 GAS DEPRECIATION EXPENSE | C12: =GAS!D131 -> 113989496.1 | D12: =GAS!L131 -> 79319168.17 | E12: =+D12-C12 -> -34670327.9
A13: =A12+1 -> 2 | B13: 403 GAS PORTION OF COMMON | C13: =Common!F66 -> 7429557.16 | D13: ='[1]Common-Elec&Gas'!$R$61 -> 5363792.692 | E13: =+D13-C13 -> -2065764.468
A14: 3 | B14: 403 DEPR. EXP. ON ASSETS NOT INCLUDED IN STUDY | C14: =Common!F76+GAS!D138 -> 27368.1293 | D14: =C14 -> 27368.1293 | E14: =+D14-C14 -> 0
A15: 4 | B15: 404 DEPR. EXP. ON ASSETS NOT INCLUDED IN STUDY | C15: =Common!F82+GAS!D146-C14 -> 11632339.73 | D15: =Common!M82+GAS!L146-D14 -> 11632339.73 | E15: =+D15-C15 -> 0
A16: 5 | B16: SUBTOTAL DEPRECIATION EXPENSE | C16: =SUM(C12:C15) -> 133078761.1 | D16: =SUM(D12:D15) -> 96342668.72 | E16: =SUM(E12:E15) -> -36736092.37
A17: 6
A18: 7 | B18: 403.1 DEPR. EXP- FAS 143 (RECOVERED IN RATES) | C18: ='GAS 403.1 Depr'!C8 -> 173994.92 | D18: ='GAS 403.1 Depr'!K8 -> 114321.572 | E18: =+D18-C18 -> -59673.34801
A19: 8 | B19: 403.1 DEPR. EXP - FAS 143 (NOT RECOVERED IN RATES) | C19: ='GAS 403.1 Depr'!C12 -> 51680.6694 | D19: ='GAS 403.1 Depr'!H12 -> 0 | E19: =+D19-C19 -> -51680.6694
A20: 9 | B20: SUBTOTAL DEPRECIATION EXPENSE 403.1 | C20: =SUM(C18:C19) -> 225675.5894 | D20: =SUM(D18:D19) -> 114321.572 | E20: =SUM(E18:E19) -> -111354.0174
A21: 10
A22: 11 | B22: TOTAL DEPRECIATION EXPENSE | C22: =C16+C20 -> 133304436.7 | D22: =D16+D20 -> 96456990.3 | E22: =+D22-C22 -> -36847446.39
A23: 12
A24: 13 | B24: AMORTIZATION EXPENSE
A25: 14 | B25: 4111 ACCRETION EXP. - FAS 143 (RECOVERED IN RATES) | C25: ='GAS Accretion'!C8 -> 28810.3 | D25: ='GAS Accretion'!K8 -> 18929.51119 | E25: =+D25-C25 -> -9880.788809
A26: 15 | B26: 4111 ACCRETION EXP. - FAS 143 (NOT RECOVERED IN RATES) | C26: ='GAS Accretion'!C12 -> 4852.63392 | D26: ='GAS Accretion'!H12 -> 0 | E26: =+D26-C26 -> -4852.63392
A27: 16 | B27: SUBTOTAL ACCRETION EXPENSE 411.1 | C27: =SUM(C25:C26) -> 33662.93392 | D27: =SUM(D25:D26) -> 18929.51119 | E27: =SUM(E25:E26) -> -14733.42273
A28: 17
A29: 18 | B29: FLEET DEPR. EXP. ON INC STMNT NOT RECORDED IN 403 | C29: =GAS!D158+Common!F102 -> 408687.72 | D29: =GAS!L158+Common!M102 -> 171927.1694 | E29: =+D29-C29 -> -236760.5506
A30: 19
A31: 20
A32: 21
A33: 22 | B33: INCREASE(DECREASE) EXPENSE | E33: =E22+E27+E29 -> -37098940.36
A34: 23 | B34: FIT | D34: 0.35 | E34: =-E33*D34 -> 12984629.13
A35: 24 | B35: INCREASE(DECREASE) NOI | E35: =-E33-E34 -> 24114311.23
A36: 25
A37: 26
A38: 27 | B38: ADJUSTMENT TO RATE BASE
A39: 28 | B39: ADJUSTMENT TO ACCUM. DEPREC. AT 50% DEPREC. EXPENSE LINE 22 | C39: 0.5 | E39: =-E33*C39 -> 18549470.18
A40: 29 | B40: DFIT | E40: ='DFIT Depr Stdy 10.06G'!S43 -> -6492314.563
A41: 30 | B41: TOTAL ADJUSTMENT TO RATEBASE | E41: =SUM(E39:E40) -> 12057155.62

Sheet GAS
F1: CURRENT | I1: PROPOSED | L1: PROPOSED | M1: INCREASE
A2: ACCOUNT | C2: ACQUISITION | D2: DEPRECIATION | E2: CURRENT | F2: RATE | G2: PROPOSED | H2: Difft % | I2: DEPRECIATION | J2: PROPOSED | K2: Difft % | L2: DEPRECIATION | M2: (DECREASE)
A3: NUMBER | B3: DESCRIPTION | C3: VALUE | D3: EXPENSE | E3: RATE | F3: % | G3: RATE | H3: RATE | I3: EXPENSE AMOUNT | J3: RATE | K3: RATE | L3: EXPENSE AMOUNT | M3: AMOUNT
G4: Per PSE | I4: Per PSE | J4: Per Public Counsel | L4: Per Public Counsel
A6: GAS PLANT
B7: MANUFACTURED GAS PRODUCTION PLANT
A8: 305 | B8: STRUCTURES AND IMPROVEMENTS
B9: DIERINGER | C9: ='Gas Study Rpt'!K18 -> 43406.61
B10: SWARR | C10: ='Gas Study Rpt'!K19 -> 465330.71
B11: TOTAL STRUCTURES AND IMPROVEMENTS | C11: =SUBTOTAL(9,C9:C10) -> 508737.32 | D11: 2543.64 | E11: 0.5 | F11: =E11*0.01 -> 0.005 | G11: ='Gas Study Rpt'!V21 -> 0.002814812171 | H11: =G11/F11 -> 0.5629624341 | I11: =D11*H11 -> 1431.973766 | J11: =G11 -> 0.002814812171 | K11: =J11/G11 -> 1 | L11: =I11*K11 -> 1431.973766 | M11: =L11-I11 -> 0 | N11: =D11*H11-I11 -> 0
A13: 311 | B13: LIQUEFIED PETROLEUM GAS EQUIPMENT
B14: DIERINGER | C14: ='Gas Study Rpt'!K24 -> 685182.6
B15: SWARR | C15: ='Gas Study Rpt'!K25 -> 5385099.43
B16: TOTAL LIQUEFIED PETROLEUM GAS EQUIPMENT | C16: =SUBTOTAL(9,C14:C15) -> 6070282.03 | D16: 57667.68 | E16: 0.95 | F16: =E16*0.01 -> 0.0095 | G16: ='Gas Study Rpt'!V27 -> 0.005742896265 | H16: =G16/F16 -> 0.6045153964 | I16: =D16*H16 -> 34861.00043 | J16: =G16 -> 0.005742896265 | K16: =J16/G16 -> 1 | L16: =I16*K16 -> 34861.00043 | M16: =L16-I16 -> 0 | N16: =D16*H16-I16 -> 0
A19: 320 | B19: OTHER EQUIPMENT | C19: ='Gas Study Rpt'!K29 -> 4852.88 | D19: 2.4 | E19: 0.05 | F19: =E19*0.01 -> 0.0005 | G19: ='Gas Study Rpt'!V29 -> 0.04966123209 | H19: =G19/F19 -> 99.32246419 | I19: =D19*H19 -> 238.373914 | J19: =G19 -> 0.04966123209 | K19: =J19/G19 -> 1 | L19: =I19*K19 -> 238.373914 | M19: =L19-I19 -> 0 | N19: =D19*H19-I19 -> 0
B22: UNDERGROUND STORAGE PLANT
A23: 350.3 | B23: EASEMENTS | C23: ='Gas Study Rpt'!K36 -> 33641.1 | D23: 507.15 | E23: 2.01 | F23: =E23*0.01 -> 0.0201 | G23: ='Gas Study Rpt'!V36 -> 0.03278727509 | H23: =G23/F23 -> 1.631207716 | I23: =D23*H23 -> 827.2669931 | J23: =G23 -> 0.03278727509 | K23: =J23/G23 -> 1 | L23: =I23*K23 -> 827.2669931 | M23: =L23-I23 -> 0
A24: 351.1 | B24: STRUCTURES AND IMPROVEMENTS - WELLS | C24: ='Gas Study Rpt'!K37 -> 230122.07 | D24: 3644.99 | E24: 1.63 | F24: 0.0163 | G24: ='Gas Study Rpt'!V37 -> 0.01631742666 | H24: 1.00106912 | I24: =D24*H24 -> 3648.886933 | J24: 0.01631742666 | K24: 1 | L24: 3648.886933 | M24: 0 | N24: =D24*H24-I24 -> 0
A25: 351.2 | B25: STRUCTURES AND IMPROVEMENTS - COMPRESSOR STATIONS | C25: ='Gas Study Rpt'!K38 -> 469567.31 | D25: 1173.96 | E25: 0.25 | F25: 0.0025 | G25: ='Gas Study Rpt'!V38 -> 0.02506562904 | H25: 10.02625161 | I25: =D25*H25 -> 11770.41835 | J25: 0.02506562904 | K25: 1 | L25: 11770.41835 | M25: 0 | N25: 0
A26: 351.3 | B26: STRUCTURES AND IMPROVEMENTS - MEASURING AND REGULATING STATION | C26: ='Gas Study Rpt'!K39 -> 2244.87 | D26: 0 | E26: 0 | F26: 0 | G26: ='Gas Study Rpt'!V39 -> 0.01826386383 | I26: 0 | J26: 0.01826386383 | K26: 1 | L26: 0 | M26: 0 | N26: 0
A27: 351.4 | B27: STRUCTURES AND IMPROVEMENTS - OTHER | C27: ='Gas Study Rpt'!K40 -> 134361.93 | D27: 2015.52 | E27: 1.5 | F27: 0.015 | G27: ='Gas Study Rpt'!V40 -> 0.0279990024 | H27: 1.86660016 | I27: =D27*H27 -> 3762.169954 | J27: 0.0279990024 | K27: 1 | L27: 3762.169954 | M27: 0 | N27: 0
A28: 352 | B28: WELLS | C28: ='Gas Study Rpt'!K41 -> 11293925.79 | D28: 135492.81 | E28: 1.2 | F28: 0.012 | G28: ='Gas Study Rpt'!V41 -> 0.0180432388 | H28: 1.503603233 | I28: =D28*H28 -> 203727.4272 | J28: 0.0180432388 | K28: 1 | L28: 203727.4272 | M28: 0 | N28: 0
A29: 352.2 | B29: RESERVOIRS | C29: ='Gas Study Rpt'!K42 -> 1757701.36 | D29: 35505.6 | E29: 2.02 | F29: 0.0202 | G29: ='Gas Study Rpt'!V42 -> 0.01491379628 | H29: 0.7383067464 | I29: =D29*H29 -> 26214.02402 | J29: 0.01491379628 | K29: 1 | L29: 26214.02402 | M29: 0 | N29: 0
A30: 352.3 | B30: NON-RECOVERABLE NATURAL GAS | C30: ='Gas Study Rpt'!K43 -> 4185430.83 | D30: 87894 | E30: 2.1 | F30: 0.021 | G30: ='Gas Study Rpt'!V43 -> 0.01884608854 | H30: 0.8974327876 | I30: 78878.95743 | J30: 0.01884608854 | K30: 1 | L30: 78878.95743 | M30: 0 | N30: 0
A31: 353 | B31: LINES | C31: ='Gas Study Rpt'!K44 -> 2676181.41 | D31: 65058.73 | E31: 2.5 | F31: 0.025 | G31: ='Gas Study Rpt'!V44 -> 0.02248053879 | H31: 0.8992215517 | I31: =D31*H31 -> 58502.21214 | J31: 0.02248053879 | K31: 1 | L31: 58502.21214 | M31: 0 | N31: =D31*H31-I31 -> 0
A32: 354 | B32: COMPRESSOR STATION EQUIPMENT | C32: ='Gas Study Rpt'!K45 -> 17969110.13 | D32: 459364.14 | E32: 2.56 | F32: 0.0256 | G32: ='Gas Study Rpt'!V45 -> 0.03062227322 | H32: =G32/F32 -> 1.196182548 | I32: =D32*H32 -> 549483.3674 | J32: 0.03062227322 | K32: 1 | L32: 549483.3674 | M32: 0 | N32: 0
A33: 355 | B33: MEASURING AND REGULATING EQUIPMENT | C33: ='Gas Study Rpt'!K46 -> 530739.26 | D33: 17355.12 | E33: 3.27 | F33: 0.0327 | G33: ='Gas Study Rpt'!V46 -> 0.04213179933 | H33: 1.28843423 | I33: 22360.93068 | J33: 0.04213179933 | K33: 1 | L33: 22360.93068 | M33: 0 | N33: 0
A34: 356 | B34: PURIFICATION EQUIPMENT | C34: ='Gas Study Rpt'!K47 -> 2662646.77 | D34: 50057.76 | E34: 1.88 | F34: 0.0188 | G34: ='Gas Study Rpt'!V47 -> 0.02732731988 | H34: 1.453580844 | I34: =D34*H34 -> 72763.00105 | J34: 0.02732731988 | K34: 1 | L34: 72763.00105 | M34: 0 | N34: 0
A35: 357 | B35: OTHER EQUIPMENT | C35: ='Gas Study Rpt'!K48 -> 376479.9 | D35: 3345.54 | E35: 0.95 | F35: 0.0095 | G35: ='Gas Study Rpt'!V48 -> 0.0524330781 | H35: 5.519271379 | I35: 18464.94317 | J35: 0.0524330781 | K35: 1 | L35: 18464.94317 | M35: 0 | N35: 0
C36: =SUBTOTAL(9,C23:C35) -> 42322152.73 | D36: =SUBTOTAL(9,D23:D35) -> 861415.32 | F36: =D36/C36 -> 0.02035376899 | G36: =I36/C36 -> 0.02481923857 | H36: 1.219392761 | I36: =SUBTOTAL(9,I23:I35) -> 1050403.605 | J36: =L36/$C36 -> 0.02481923857 | K36: 1 | L36: =SUBTOTAL(9,L23:L35) -> 1050403.605 | M36: =SUBTOTAL(9,M23:M35) -> 0 | N36: 0
B39: OTHER STORAGE PLANT
A40: 361 | B40: STRUCTURES AND IMPROVEMENTS | C40: ='Gas Study Rpt'!K55 -> 4155602.12 | D40: 118850.28 | E40: 2.86 | F40: =E40*0.01 -> 0.0286 | G40: ='Gas Study Rpt'!V55 -> 0.02498963977 | H40: =G40/F40 -> 0.8737636283 | I40: =D40*H40 -> 103847.0519 | J40: =G40 -> 0.02498963977 | K40: =J40/G40 -> 1 | L40: =I40*K40 -> 103847.0519 | M40: =L40-I40 -> 0 | N40: =D40*H40-I40 -> 0
A41: 362 | B41: GAS HOLDERS | C41: ='Gas Study Rpt'!K56 -> 3683221.39 | D41: 133700.88 | E41: 3.63 | F41: 0.0363 | G41: ='Gas Study Rpt'!V56 -> 0.03476739149 | H41: =G41/F41 -> 0.9577793798 | I41: 128055.9459 | J41: 0.03476739149 | K41: 1 | L41: 128055.9459 | M41: 0 | N41: 0
A42: 363 | B42: PURIFICATION EQUIPMENT | C42: ='Gas Study Rpt'!K57 -> 3984038.93 | D42: 125098.8 | E42: 3.14 | F42: 0.0314 | G42: ='Gas Study Rpt'!V57 -> 0.02626229358 | H42: 0.8363787763 | I42: 104629.9813 | J42: 0.02626229358 | K42: 1 | L42: 104629.9813 | M42: 0 | N42: 0
A43: 364 | B43: TRANSPORTATION EQUIPMENT | C43: ='Gas Study Rpt'!K58 -> 970580.63 | D43: 31155.72 | E43: 3.21 | F43: 0.0321 | G43: ='Gas Study Rpt'!V58 -> 0.02324587912 | H43: 0.7241706891 | I43: =D43*H43 -> 22562.05922 | J43: 0.02324587912 | K43: 1 | L43: 22562.05922 | M43: 0 | N43: 0
C44: =SUBTOTAL(9,C40:C43) -> 12793443.07 | D44: =SUBTOTAL(9,D40:D43) -> 408805.68 | F44: =D44/C44 -> 0.03195431267 | G44: =I44/C44 -> 0.02806867833 | H44: 0.8784003155 | I44: =SUBTOTAL(9,I40:I43) -> 359095.0383 | J44: =L44/$C44 -> 0.02806867833 | K44: 1 | L44: =SUBTOTAL(9,L40:L43) -> 359095.0383 | M44: =SUBTOTAL(9,M40:M43) -> 0 | N44: 0
B46: DISTRIBUTION PLANT
A47: 374.2 | B47: EASEMENTS | C47: ='Gas Study Rpt'!K65 -> 5872231.94 | D47: 23673.57 | E47: 2.01 | F47: =E47*0.01 -> 0.0201 | G47: ='Gas Study Rpt'!V65 -> 0.01580659636 | H47: =G47/F47 -> 0.7863978288 | I47: =D47*H47 -> 18616.84405 | J47: =G47 -> 0.01580659636 | K47: =J47/G47 -> 1 | L47: =I47*K47 -> 18616.84405 | M47: =L47-I47 -> 0 | N47: =D47*H47-I47 -> 0
A48: 374.3 | B48: EASEMENTS FROM TRANSMISSION | C48: ='Gas Study Rpt'!K66 -> 7998815.58 | D48: 160776.24 | E48: 2.01 | F48: =E48*0.01 -> 0.0201 | G48: ='Gas Study Rpt'!V66 -> 0.01453440185 | H48: =G48/F48 -> 0.7231045699 | I48: =D48*H48 -> 116258.0339 | J48: 0.01453440185 | K48: 1 | L48: 116258.0339 | M48: 0 | N48: 0
A49: 375 | B49: STRUCTURES AND IMPROVEMENTS | C49: ='Gas Study Rpt'!K67 -> 36537811.97 | D49: 616845.81 | E49: 2.19 | F49: 0.0219 | G49: ='Gas Study Rpt'!V67 -> 0.02533583568 | H49: 1.156887474 | I49: 713621.1908 | J49: 0.02533583568 | K49: 1 | L49: 713621.1908 | M49: 0 | N49: 0
A50: 376.2 | B50: MAINS - PLASTIC | C50: ='Gas Study Rpt'!K68 -> 1180051442 | D50: 31510603.63 | E50: 2.77 | F50: 0.0277 | G50: ='Gas Study Rpt'!V68 -> 0.02443056208 | H50: 0.8819697502 | I50: 27791399.21 | J50: 0.0182 | K50: 0.7449685333 | L50: 20703717.91 | M50: -7087681.303 | N50: 0
A51: 376.4 | B51: MAINS - WRAPPED STEEL | C51: ='Gas Study Rpt'!K69 -> 536417722.5 | D51: 17328115.94 | E51: 3.27 | F51: 0.0327 | G51: ='Gas Study Rpt'!V69 -> 0.02214750278 | H51: 0.677293663 | I51: 11736223.12 | J51: 0.0158 | K51: 0.7133987139 | L51: 8372606.479 | M51: -3363616.639 | N51: 0
A52: 376.5 | B52: MAINS - CATHODIC PROTECTION | C52: ='Gas Study Rpt'!K70 -> 35642748.71 | D52: 1019750.72 | E52: 2.8986 | F52: 0.028986 | G52: ='Gas Study Rpt'!V70 -> 0.03582944768 | H52: 1.236094931 | I52: 1260508.696 | J52: 0.03582944768 | K52: 1 | L52: 1260508.696 | M52: 0 | N52: 0
A53: 378 | B53: MEASURING AND REGULATING STATION EQUIPMENT | C53: ='Gas Study Rpt'!K71 -> 109594096.2 | D53: 4518926.17 | E53: 4.17 | F53: 0.0417 | G53: ='Gas Study Rpt'!V71 -> 0.04125351783 | H53: 0.9892929936 | I53: 4470541.999 | J53: 0.0311 | K53: 0.7538751029 | L53: 3370230.309 | M53: -1100311.69 | N53: 0
A54: 380.1 | B54: SERVICES - CATHODIC PROTECTION | C54: ='Gas Study Rpt'!K72 -> 20729198.53 | D54: 592747.26 | E54: =E52 -> 2.8986 | F54: 0.028986 | G54: ='Gas Study Rpt'!V72 -> 0.03507593402 | H54: 1.210099152 | I54: 717282.9568 | J54: 0.03507593402 | K54: 1 | L54: 717282.9568 | M54: 0 | N54: 0
A55: 380.2 | B55: SERVICES - PLASTIC | C55: ='Gas Study Rpt'!K73 -> 962277703.5 | D55: 42618886.88 | E55: 4.58 | F55: 0.0458 | G55: ='Gas Study Rpt'!V73 -> 0.0319501386 | H55: 0.6976012795 | I55: 29730990.02 | J55: 0.0282 | K55: 0.8826252791 | L55: 26241323.36 | M55: -3489666.657 | N55: 0
A56: 380.3 | B56: SERVICES - WRAPPED STEEL | C56: ='Gas Study Rpt'!K74 -> 37555623.54 | D56: 1724431.56 | E56: 4.58 | F56: 0.0458 | G56: ='Gas Study Rpt'!V74 -> 0.03939066538 | H56: 0.8600581961 | I56: 1483111.497 | J56: 0.0326 | K56: 0.8276072436 | L56: 1227433.818 | M56: -255677.6789 | N56: 0
A57: 381 | B57: METERS ** | C57: ='Gas Study Rpt'!K75 -> 79272361.52 | D57: 2043932.51 | E57: 2.73 | F57: 0.0273 | G57: ='Gas Study Rpt'!V75 -> 0.04067222091 | H57: 1.489824942 | I57: 3045101.633 | J57: 0.04067222091 | K57: 1 | L57: 3045101.633 | M57: 0 | N57: 0
A58: 382 | B58: METER INSTALLATIONS | C58: ='Gas Study Rpt'!K76 -> 165961349.6 | D58: 3723206.5 | E58: 2.4 | F58: 0.024 | G58: ='Gas Study Rpt'!V76 -> 0.02250768031 | H58: 0.937820013 | I58: 3491697.568 | J58: 0.02250768031 | K58: 1 | L58: 3491697.568 | M58: 0 | N58: 0
A59: 383 | B59: HOUSE REGULATORS | C59: ='Gas Study Rpt'!K77 -> 16689214.72 | D59: 395279.91 | E59: 2.41 | F59: 0.0241 | G59: ='Gas Study Rpt'!V77 -> 0.01439911967 | H59: 0.5974738453 | I59: 236169.4078 | J59: 0.01439911967 | K59: 1 | L59: 236169.4078 | M59: 0 | N59: 0
A60: 384 | B60: HOUSE REGULATOR INSTALLATIONS | C60: ='Gas Study Rpt'!K78 -> 83183112.24 | D60: 2030682.95 | E60: 2.46 | F60: 0.0246 | G60: ='Gas Study Rpt'!V78 -> 0.01808563012 | H60: 0.7351882162 | I60: 1492934.176 | J60: 0.01808563012 | K60: 1 | L60: 1492934.176 | M60: 0 | N60: 0
A61: 385 | B61: INDUSTRIAL MEASURING AND REGULATING STATION EQUIPMENT | C61: ='Gas Study Rpt'!K79 -> 38074911.89 | D61: 1457958.44 | E61: 3.91 | F61: 0.0391 | G61: ='Gas Study Rpt'!V79 -> 0.06852110407 | H61: 1.752457905 | I61: 2555010.793 | J61: 0.06852110407 | K61: 1 | L61: 2555010.793 | M61: 0 | N61: 0
C62: =SUBTOTAL(9,C47:C61) -> 3315858344 | D62: =SUBTOTAL(9,D47:D61) -> 109765818.1 | F62: =D62/C62 -> 0.03310328932 | G62: =I62/C62 -> 0.0267983303 | H62: 0.8095367819 | I62: =SUBTOTAL(9,I47:I61) -> 88859467.14 | J62: =L62/$C62 -> 0.02218505905 | K62: 0.8278522879 | L62: =SUBTOTAL(9,L47:L61) -> 73562513.18 | M62: =SUBTOTAL(9,M47:M61) -> -15296953.97 | N62: 0
A64: 386 | B64: RESIDENTIAL AND COMMERCIAL WATER HEATERS AND CONVERSION BURNERS
B65: FULLY ACCRUED | C65: ='Gas Study Rpt'!K81 -> 16795703.85 | D65: 0 | I65: 0 | J65: 0 | M65: =I65-D65 -> 0 | N65: =D65*H65-I65 -> 0
B66: AMORTIZED | C66: ='Gas Study Rpt'!K82 -> 10445838.3 | D66: 148700.53 | E66: 2.55 | F66: =E66*0.01 -> 0.0255 | G66: ='Gas Study Rpt'!V82 -> 0.1000355328 | H66: =G66/F66 -> 3.922962071 | I66: =D66*H66 -> 583346.5391 | J66: =G66 -> 0.1000355328 | K66: =J66/G66 -> 1 | L66: =I66*K66 -> 583346.5391 | M66: =L66-I66 -> 0 | N66: 0
D67: 1152391.4 | E67: 5.52 | F67: 0.0552 | G67: =G66 -> 0.1000355328 | H67: =G67/F67 -> 1.812237913 | I67: =D67*H67 -> 2088407.386 | J67: 0.1000355328 | K67: 1 | L67: 2088407.386 | M67: 0 | N67: 0
D68: 16747.53 | E68: 1.37 | F68: 0.0137 | G68: =G67 -> 0.1000355328 | H68: =G68/F68 -> 7.301863709 | I68: =D68*H68 -> 122288.1815 | J68: 0.1000355328 | K68: 1 | L68: 122288.1815 | M68: 0 | N68: 0
C69: =SUBTOTAL(9,C65:C68) -> 27241542.15 | D69: =SUBTOTAL(9,D65:D68) -> 1317839.46 | I69: =SUBTOTAL(9,I65:I68) -> 2794042.107 | L69: =SUBTOTAL(9,L65:L68) -> 2794042.107 | M69: =SUBTOTAL(9,M65:M68) -> 0
A71: 387 | B71: OTHER EQUIPMENT | C71: ='Gas Study Rpt'!K86 -> 5758985.84 | D71: 155922.5 | E71: 2.66 | F71: =E71*0.01 -> 0.0266 | G71: ='Gas Study Rpt'!V86 -> 0.1205224356 | H71: =G71/F71 -> 4.530918631 | I71: =D71*H71 -> 706472.1603 | J71: =G71 -> 0.1205224356 | K71: =J71/G71 -> 1 | L71: =I71*K71 -> 706472.1603 | M71: =L71-I71 -> 0 | N71: =D71*H71-I71 -> 0
B74: GENERAL PLANT
A75: 390 | B75: STRUCTURES AND IMPROVEMENTS | C75: ='Gas Study Rpt'!K93 -> 2445499.7 | D75: 297388.06 | E75: 89.59 | F75: =E75*0.01 -> 0.8959 | G75: ='Gas Study Rpt'!V93 -> 0.02778041641 | H75: =G75/F75 -> 0.03100838979 | I75: =D75*H75 -> 9221.524883 | J75: =G75 -> 0.02778041641 | K75: =J75/G75 -> 1 | L75: =I75*K75 -> 9221.524883 | M75: =L75-I75 -> 0 | N75: =D75*H75-I75 -> 0
A76: 391.1 | B76: OFFICE FURNITURE AND EQUIPMENT
B77: FULLY ACCRUED | C77: ='Gas Study Rpt'!K95 -> 3282777.32 | D77: 157819.72 | E77: 5 | F77: =E77*0.01 -> 0.05 | G77: ='Gas Study Rpt'!V96 -> 0.04999353747 | H77: =G77/F77 -> 0.9998707494 | I77: =D77*H77 -> 157799.3217 | J77: 0 | K77: =J77/G77 -> 0 | L77: =I77*K77 -> 0 | M77: =L77-I77 -> -157799.3217 | N77: =D77*H77-I77 -> 0
B78: AMORTIZED | C78: ='Gas Study Rpt'!K96 -> 3172210.01 | D78: 114092.52 | F78: 0.16438356 | G78: =G77 -> 0.04999353747 | H78: =G78/F78 -> 0.304127356 | I78: =D78*H78 -> 34698.65645 | J78: =G78 -> 0.04999353747 | K78: 1 | L78: 34698.65645 | M78: 0 | N78: =D78*H78-I78 -> 0
C79: =+SUBTOTAL(9,C75:C78) -> 8900487.03 | D79: =+SUBTOTAL(9,D75:D78) -> 569300.3 | I79: =+SUBTOTAL(9,I75:I78) -> 201719.503 | L79: =SUBTOTAL(9,L77:L78) -> 34698.65645 | M79: =+SUBTOTAL(9,M75:M78) -> -157799.3217
A81: 391.2 | B81: OFFICE FURNITURE AND EQUIPMENT - COMPUTERS | C81: ='Gas Study Rpt'!K100 -> 186638.97 | D81: 37577.72 | E81: 20 | F81: 0.2 | G81: ='Gas Study Rpt'!V100 -> 0.2000171775 | H81: =G81/F81 -> 1.000085888 | I81: =D81*H81 -> 37580.94747 | J81: =G81 -> 0.2000171775 | K81: =J81/G81 -> 1 | L81: =I81*K81 -> 37580.94747 | M81: =L81-I81 -> 0 | N81: =D81*H81-I81 -> 0
M82: 0
A83: 392 * | B83: TRANSPORTATION EQUIPMENT | D83: 531271.07 | E83: 9 | F83: =E83*0.01 -> 0.09 | G83: ='Gas Study Rpt'!V101 -> 0.04530800896 | H83: =G83/F83 -> 0.5034223218 | I83: =D83*H83 -> 267453.7155 | J83: =G83 -> 0.04530800896 | K83: =J83/G83 -> 1 | L83: =I83*K83 -> 267453.7155 | M83: 0 | N83: =D83*H83-I83 -> 0
C84: ='Gas Study Rpt'!K101 -> 6312129.06 | D84: 33646.68 | F84: 0.6 | G84: ='Gas Study Rpt'!V101 -> 0.04530800896 | H84: 0.07551334826 | I84: =D84*H84 -> 2540.773465 | J84: 0.04530800896 | K84: 1 | L84: 2540.773465 | M84: 0 | N84: 0
C85: =+SUBTOTAL(9,C83:C84) -> 6312129.06 | D85: =+SUBTOTAL(9,D83:D84) -> 564917.75 | I85: =+SUBTOTAL(9,I83:I84) -> 269994.489 | L85: =SUBTOTAL(9,L83:L84) -> 269994.489 | M85: 0
A88: 393 | B88: STORES EQUIPMENT FULLY ACCRUED | C88: ='Gas Study Rpt'!K102 -> 50148.16 | D88: 1701.48 | F88: 0.16438356 | G88: 0 | H88: =G88/F88 -> 0 | I88: =D88*H88 -> 0 | J88: 0 | K88: =IFERROR(J88/G88,0) -> 0 | N88: =D88*H88-I88 -> 0
A91: 394 | B91: TOOLS, SHOP AND GARAGE EQUIPMENT
B92: FULLY ACCRUED | C92: ='Gas Study Rpt'!K105 -> 3648171.26 | D92: 132770.27 | E92: 5 | F92: =E92*0.01 -> 0.05 | G92: ='Gas Study Rpt'!V106 -> 0.05003831372 | H92: =G92/F92 -> 1.000766274 | I92: =D92*H92 -> 132872.0085 | J92: 0 | K92: =J92/G92 -> 0 | L92: =I92*K92 -> 0 | M92: =L92-I92 -> -132872.0085 | N92: =D92*H92-I92 -> 0
B93: AMORTIZED | C93: ='Gas Study Rpt'!K106 -> 7514501.83 | D93: 253647.24 | F93: 0.16438356 | G93: ='Gas Study Rpt'!V106 -> 0.05003831372 | H93: 0.3043997448 | I93: =D93*H93 -> 77210.15513 | J93: =G93 -> 0.05003831372 | K93: 1 | L93: 77210.15513 | M93: 0 | N93: 0
C94: =+SUBTOTAL(9,C92:C93) -> 11162673.09 | D94: =+SUBTOTAL(9,D92:D93) -> 386417.51 | I94: =+SUBTOTAL(9,I92:I93) -> 210082.1636 | L94: =SUBTOTAL(9,L92:L93) -> 77210.15513 | M94: -132872.0085
A95: 395 | B95: LABORATORY EQUIPMENT
B96: FULLY ACCRUED | C96: ='Gas Study Rpt'!K111 -> 22161 | D96: 24706.84 | E96: 5 | F96: =E96*0.01 -> 0.05 | G96: ='Gas Study Rpt'!V112 -> 0.04999347914 | H96: =G96/F96 -> 0.9998695828 | I96: =D96*H96 -> 24703.6178 | J96: 0 | K96: =J96/G96 -> 0 | L96: =I96*K96 -> 0 | M96: =L96-I96 -> -24703.6178 | N96: =D96*H96-I96 -> 0
B97: AMORTIZED | C97: ='Gas Study Rpt'!K112 -> 2830609.16 | D97: 107170.86 | F97: 0.16438356 | G97: ='Gas Study Rpt'!V112 -> 0.04999347914 | H97: 0.3041270012 | I97: =D97*H97 -> 32593.55226 | J97: =G97 -> 0.04999347914 | K97: 1 | L97: 32593.55226 | M97: 0 | N97: =D97*H97-I97 -> 0
C98: =+SUBTOTAL(9,C96:C97) -> 2852770.16 | D98: =+SUBTOTAL(9,D96:D97) -> 131877.7 | I98: =+SUBTOTAL(9,I96:I97) -> 57297.17007 | L98: =SUBTOTAL(9,L96:L97) -> 32593.55226 | M98: =+SUBTOTAL(9,M96:M97) -> -24703.6178
A100: 396 ** | B100: POWER OPERATED EQUIPMENT | C100: ='Gas Study Rpt'!K116 -> 484657.89 | D100: 8.05 | F100: 0.06 | G100: ='Gas Study Rpt'!V116 -> 0.06427420381 | H100: =G100/F100 -> 1.07123673 | I100: =D100*H100 -> 8.623455678 | J100: =G100 -> 0.06427420381 | K100: =J100/G100 -> 1 | L100: =I100*K100 -> 8.623455678 | M100: =L100-I100 -> 0 | N100: =D100*H100-I100 -> 0
D101: 4671 | F101: 0.2264151 | G101: =G100 -> 0.06427420381 | H101: =G101/F101 -> 0.2838777264 | I101: =D101*H101 -> 1325.99286 | J101: 0.06427420381 | K101: 1 | L101: 1325.99286 | M101: 0 | N101: =D101*H101-I101 -> 0
C102: =+SUBTOTAL(9,C100:C101) -> 484657.89 | D102: =+SUBTOTAL(9,D100:D101) -> 4679.05 | I102: =+SUBTOTAL(9,I100:I101) -> 1334.616316 | L102: =SUBTOTAL(9,L100:L101) -> 1334.616316 | M102: 0
A103: 397 | B103: COMMUNICATION EQUIPMENT
B104: FULLY ACCRUED | C104: ='Gas Study Rpt'!K118 -> 3740400.02 | D104: 62834.25 | E104: 6.67 | F104: =E104*0.01 -> 0.0667 | G104: ='Gas Study Rpt'!V119 -> 0.06673366342 | H104: =G104/F104 -> 1.000504699 | I104: =D104*H104 -> 62865.96238 | J104: 0 | K104: =J104/G104 -> 0 | L104: =I104*K104 -> 0 | M104: =L104-I104 -> -62865.96238 | N104: =D104*H104-I104 -> 0
B105: AMORTIZED | C105: ='Gas Study Rpt'!K119 -> 1317655.82 | D105: 215300.76 | F105: 0.27906976 | G105: ='Gas Study Rpt'!V119 -> 0.06673366342 | H105: =G105/F105 -> 0.239128967 | I105: =D105*H105 -> 51484.64833 | J105: =G105 -> 0.06673366342 | K105: 1 | L105: 51484.64833 | M105: 0 | N105: 0
C106: =+SUBTOTAL(9,C104:C105) -> 5058055.84 | D106: =+SUBTOTAL(9,D104:D105) -> 278135.01 | I106: =+SUBTOTAL(9,I104:I105) -> 114350.6107 | L106: =SUBTOTAL(9,L104:L105) -> 51484.64833 | M106: -62865.96238
A107: 398 | B107: MISCELLANEOUS EQUIPMENT
B108: FULLY ACCRUED | C108: ='Gas Study Rpt'!K124 -> 60682.07 | D108: 9560.28 | E108: 6.67 | F108: =E108*0.01 -> 0.0667 | G108: ='Gas Study Rpt'!V125 -> 0.06666691513 | H108: =G108/F108 -> 0.9995039749 | I108: =D108*H108 -> 9555.537861 | J108: 0 | K108: =J108/G108 -> 0 | L108: =I108*K108 -> 0 | M108: =L108-I108 -> -9555.537861 | N108: =D108*H108-I108 -> 0
B109: AMORTIZED | C109: ='Gas Study Rpt'!K125 -> 155624.42 | D109: 4911.3 | F109: 0.27906976 | G109: ='Gas Study Rpt'!V125 -> 0.06666691513 | H109: 0.2388897856 | I109: =D109*H109 -> 1173.259404 | J109: =G109 -> 0.06666691513 | K109: 1 | L109: 1173.259404 | M109: 0 | N109: 0
C110: =+SUBTOTAL(9,C108:C109) -> 216306.49 | D110: =+SUBTOTAL(9,D108:D109) -> 14471.58 | I110: =+SUBTOTAL(9,I108:I109) -> 10728.79727 | L110: =SUBTOTAL(9,L108:L109) -> 1173.259404 | M110: -9555.537861
N112: =D112*H112-I112 -> 0
B115: SUBTOTAL | C115: =+SUBTOTAL(9,C7:C113) -> 3445782207 | D115: =+SUBTOTAL(9,D7:D113) -> 114559092.9 | F115: =D115/C115 -> 0.03324617924 | G115: =I115/C115 -> 0.02748551534 | H115: =G115/F115 -> 0.8267270395 | I115: =+SUBTOTAL(9,I7:I113) -> 94709099.7 | J115: =L115/$C115 -> 0.02293364599 | K115: =J115/G115 -> 0.834390249 | L115: =+SUBTOTAL(9,L7:L113) -> 79024349.28 | M115: =+SUBTOTAL(9,M7:M113) -> -15684750.42 | N115: =D115*H115-I115 -> 0
A116: Remove CC300 depreciation not booked to 403 - to be adjusted separately
A117: 392 * | B117: TRANSPORTATION EQUIPMENT | D117: =-D85 -> -564917.75 | I117: =-I85 -> -269994.489 | L117: =I117 -> -269994.489 | M117: =I117-D117 -> 294923.261
A118: 396 ** | B118: POWER OPERATED EQUIPMENT | D118: =-D102 -> -4679.05 | I118: =-I102 -> -1334.616316 | L118: -1334.616316 | M118: =I118-D118 -> 3344.433684
B119: ADJUSTED SUBTOTAL | D119: =SUM(D115:D118) -> 113989496.1 | I119: =SUM(I115:I118) -> 94437770.59 | L119: =SUM(L115:L118) -> 78753020.18 | M119: =SUM(M115:M118) -> -15386482.72
B122: UNRECOVERED RESERVE TO BE AMORTIZED
A123: 386 | B123: RESIDENTIAL AND COMMERCIAL WATER HEATERS AND CONVERSION BURNERS | D123: 0 | I123: ='Gas Study Rpt'!Q134 -> -411818.4 | L123: =I123 -> -411818.4 | M123: =I123-D123 -> -411818.4
A124: 391.1 | B124: OFFICE FURNITURE AND EQUIPMENT | I124: ='Gas Study Rpt'!Q135 -> 292550.416 | L124: 292550.416 | M124: 292550.416
A125: 391.2 | B125: OFFICE FURNITURE AND EQUIPMENT - COMPUTERS | D125: 0 | I125: ='Gas Study Rpt'!Q136 -> -8677.394 | L125: -8677.394 | M125: -8677.394
A126: 393 | B126: STORES EQUIPMENT | D126: 0 | I126: ='Gas Study Rpt'!Q137 -> 4111.906 | L126: 4111.906 | M126: 4111.906
A127: 394 | B127: TOOLS, SHOP AND GARAGE EQUIPMENT | D127: 0 | I127: ='Gas Study Rpt'!Q138 -> 339277.36 | L127: 339277.36 | M127: 339277.36
A128: 395 | B128: LABORATORY EQUIPMENT | D128: 0 | I128: ='Gas Study Rpt'!Q139 -> 46743.082 | L128: 46743.082 | M128: 46743.082
A129: 397 | B129: COMMUNICATION EQUIPMENT | D129: 0 | I129: ='Gas Study Rpt'!Q140 -> 296312.636 | L129: 296312.636 | M129: 296312.636
A130: 398 | B130: MISCELLANEOUS EQUIPMENT | D130: 0 | I130: ='Gas Study Rpt'!Q141 -> 7648.386 | L130: 7648.386 | M130: 7648.386
B131: TOTAL DIRECTGAS EXPENSE | D131: =SUM(D119:D130) -> 113989496.1 | I131: =SUM(I119:I130) -> 95003918.59 | L131: =SUM(L119:L130) -> 79319168.17 | M131: =SUM(M119:M130) -> -14820334.73
B133: NONDEPRECIABLE PLANT
A134: 301 | B134: STRUCTURES AND IMPROVEMENTS | C134: ='Gas Study Rpt'!K151 -> 158691.96 | M134: =I134-D134 -> 0
A135: 302 | B135: FRANCHISES AND CONSENTS | C135: ='Gas Study Rpt'!K152 -> 406713.91 | D135: 32947.32 | I135: =D135 -> 32947.32 | L135: =I135 -> 32947.32 | M135: =I135-D135 -> 0
A136: 303 | B136: MISCELLANEOUS INTANGIBLE PLANT | C136: ='Gas Study Rpt'!K153 -> 14658160.96 | D136: 1528016.82 | I136: =D136 -> 1528016.82 | L136: =I136 -> 1528016.82 | M136: =I136-D136 -> 0
A137: 304 | B137: LAND AND LAND RIGHTS | C137: ='Gas Study Rpt'!K154 -> 153210.77 | M137: 0
A138: 350 | B138: LAND AND LAND RIGHTS | C138: ='Gas Study Rpt'!K155 -> 1247232.71 | D138: 40.32 | I138: =D138 -> 40.32 | L138: =I138 -> 40.32 | M138: 0
A139: 350.2 | B139: RIGHT OF WAY | C139: ='Gas Study Rpt'!K156 -> 3436.65
A140: 360 | B140: LAND AND LAND RIGHTS | C140: ='Gas Study Rpt'!K157 -> 1704569.38 | M140: 0
A141: 374 | B141: LAND AND LAND RIGHTS | C141: ='Gas Study Rpt'!K158 -> 9300951.18 | M141: 0
A142: 374.1 | B142: LAND AND LAND RIGHTS | C142: ='Gas Study Rpt'!K159 -> 951975.18 | M142: 0
A143: 388 | B143: ARO | C143: ='Gas Study Rpt'!K160 -> 9413855.15 | D143: 173994.92 | I143: =D143 -> 173994.92 | L143: =I143 -> 173994.92 | M143: 0
A144: 389 | B144: LAND AND LAND RIGHTS | C144: ='Gas Study Rpt'!K161 -> 121045.02 | L144: 0 | M144: 0
B145: Move ARC to separate line | D145: =-D143 -> -173994.92 | I145: =-I143 -> -173994.92 | L145: -173994.92 | M145: 0
B146: TOTAL NONDEPRECIABLE PLANT AND ACCOUNTS NOT STUDIED | C146: =SUM(C134:C144) -> 38119842.87 | D146: =SUM(D134:D145) -> 1561004.46 | I146: =SUM(I133:I145) -> 1561004.46 | L146: =SUM(L133:L145) -> 1561004.46 | M146: =SUM(M134:M145) -> 0
B148: TOTAL GAS PLANT | C148: =C115+C146 -> 3483902049 | D148: =D131+D146 -> 115550500.5 | I148: =I131+I146 -> 96564923.05 | L148: =L131+L146 -> 80880172.63 | M148: =M131+M146 -> -14820334.73
B151: Allocate for CC 300 | N151: ='Lead G'!E12-M148 -> -19849993.17
B152: portion of I/S | D152: Test Year | I152: Restated | L152: Restated
A153: * 392 | B153: Transportation Equipment | C153: =D153*D157 -> 329583.6045 | D153: =D85 -> 564917.75 | H153: =I153*I157 -> 157519.8458 | I153: =I85 -> 269994.489 | L153: =L85 -> 269994.489 | M153: =H153-C153 -> -172063.7587
A155: ** 396 | B155: Power Operated Equipment | C155: =D155*D157 -> 2729.845477 | D155: =D102 -> 4679.05 | H155: =I155*I157 -> 778.6401755 | I155: =I102 -> 1334.616316 | L155: =L102 -> 1334.616316 | M155: =H155-C155 -> -1951.205302
D156: =SUM(D153:D155) -> 569596.8 | I156: =SUM(I153:I155) -> 271329.1053 | L156: =SUM(L153:L155) -> 271329.1053
B157: CC 300 Depr. Exp. portion of Income Statement | D157: ='CC300'!F31 -> 0.5834187446 | F157: Portion allocated to Fleet Overheads | I157: ='CC300'!F31 -> 0.5834187446 | L157: 0.5834187446 | M157: Portion allocated to Fleet Overheads
C158: =SUM(C153:C155)-D158 -> 0 | D158: =D156*D157 -> 332313.45 | H158: =SUM(H153:H155)-I158 -> 0 | I158: =I156*I157 -> 158298.486 | L158: =L156*L157 -> 158298.486
F166: =F165+Common!F103 -> 0

Sheet Gas Study Rpt
A1: PUGET SOUND ENERGY
A2: GAS PLANT
A4: TABLE 2. SUMMARY OF ESTIMATED SURVIVOR CURVES, NET SALVAGE, ORIGINAL COST, BOOK DEPRECIATION RESERVE
A5: AND CALCULATED ANNUAL DEPRECIATION RATES AS OF SEPTEMBER 30, 2016
E8: PROBABLE | I8: NET | K8: ORIGINAL COST | M8: BOOK | Q8: CALCULATED ANNUAL | U8: COMPOSITE
E9: RETIREMENT | G9: SURVIVOR | I9: SALVAGE | K9: AS OF | M9: DEPRECIATION | O9: FUTURE | Q9: ACCRUAL | S9: ACCRUAL | U9: REMAINING
C10: ACCOUNT | E10: DATE | G10: CURVE | I10: PERCENT | K10: SEPTEMBER 30, 2016 | M10: RESERVE | O10: ACCRUALS | Q10: AMOUNT | S10: RATE | U10: LIFE
C11: -1 | E11: -2 | G11: -3 | I11: -4 | K11: -5 | M11: -6 | O11: -7 | Q11: -8 | S11: (9)=(8)/(5) | U11: (10)=(7)/(8)
C13: GAS PLANT
C15: MANUFACTURED GAS PRODUCTION PLANT
A17: 305 | C17: STRUCTURES AND IMPROVEMENTS
C18: DIERINGER | E18: 2021-06-30 | G18: 60-R4 | H18: * | I18: 0 | K18: 43406.61 | M18: 40577.04 | O18: 2830 | Q18: 599 | S18: 1.38 | U18: 4.7 | V18: =Q18/K18 -> 0.01379974156
C19: SWARR | E19: 2037-06-30 | G19: 60-R4 | H19: * | I19: 0 | K19: 465330.71 | M19: 448226.97 | O19: 17104 | Q19: 833 | S19: 0.18 | U19: 20.5 | V19: =Q19/K19 -> 0.001790124705
C21: TOTAL STRUCTURES AND IMPROVEMENTS | K21: =+SUBTOTAL(9,K18:K19) -> 508737.32 | M21: =+SUBTOTAL(9,M18:M19) -> 488804.01 | O21: =+SUBTOTAL(9,O18:O19) -> 19934 | Q21: =+SUBTOTAL(9,Q18:Q19) -> 1432 | S21: =Q21/K21*100 -> 0.2814812171 | U21: =ROUND(O21/Q21,1) -> 13.9 | V21: =Q21/K21 -> 0.002814812171
A23: 311 | C23: LIQUEFIED PETROLEUM GAS EQUIPMENT
C24: DIERINGER | E24: 2021-06-30 | G24: 60-R4 | H24: * | I24: -5 | K24: 685182.6 | M24: 693989.17 | O24: 25453 | Q24: 5448 | S24: 0.8 | U24: 4.7 | V24: =Q24/K24 -> 0.007951165135
C25: SWARR | E25: 2037-06-30 | G25: 60-R4 | H25: * | I25: -5 | K25: 5385099.43 | M25: 5056389.93 | O25: 597964 | Q25: 29413 | S25: 0.55 | U25: 20.3 | V25: =Q25/K25 -> 0.005461923291
C27: TOTAL LIQUEFIED PETROLEUM GAS EQUIPMENT | K27: =+SUBTOTAL(9,K24:K25) -> 6070282.03 | M27: =+SUBTOTAL(9,M24:M25) -> 5750379.1 | O27: =+SUBTOTAL(9,O24:O25) -> 623417 | Q27: =+SUBTOTAL(9,Q24:Q25) -> 34861 | S27: =Q27/K27*100 -> 0.5742896265 | U27: =ROUND(O27/Q27,1) -> 17.9 | V27: =Q27/K27 -> 0.005742896265
A29: 320 | C29: OTHER EQUIPMENT | E29: 2037-06-30 | G29: 35-S4 | H29: * | I29: 0 | K29: 4852.88 | M29: 770.51 | O29: 4082 | Q29: 241 | S29: 4.97 | U29: 16.9 | V29: =Q29/K29 -> 0.04966123209
C31: TOTAL MANUFACTURED GAS PRODUCTION PLANT | K31: =+SUBTOTAL(9,K17:K30) -> 6583872.23 | M31: =+SUBTOTAL(9,M17:M30) -> 6239953.62 | O31: =+SUBTOTAL(9,O17:O30) -> 647433 | Q31: =+SUBTOTAL(9,Q17:Q30) -> 36534 | S31: =ROUND(Q31/K31*100,2) -> 0.55 | V31: =K29*V29 -> 241
C34: UNDERGROUND STORAGE PLANT
A36: 350.3 | C36: EASEMENTS | E36: 2043-06-30 | G36: SQUARE | H36: * | I36: 0 | K36: 33641.1 | M36: 4128 | O36: 29513 | Q36: 1103 | S36: 3.28 | U36: 26.8 | V36: =Q36/K36 -> 0.03278727509
A37: 351.1 | C37: STRUCTURES AND IMPROVEMENTS - WELLS | E37: 2043-06-30 | G37: 55-R4 | H37: * | I37: -5 | K37: 230122.07 | M37: 176869.4 | O37: 64759 | Q37: 3755 | S37: 1.63 | U37: 17.2 | V37: =Q37/K37 -> 0.01631742666
A38: 351.2 | C38: STRUCTURES AND IMPROVEMENTS - COMPRESSOR STATIONS | E38: 2043-06-30 | G38: 55-R4 | H38: * | I38: -5 | K38: 469567.31 | M38: 206696.68 | O38: 286349 | Q38: 11770 | S38: 2.51 | U38: 24.3 | V38: 0.02506562904
A39: 351.3 | C39: STRUCTURES AND IMPROVEMENTS - MEASURING ANS REGULATING EQUIPMENT | E39: 2043-06-30 | G39: 55-R4 | H39: * | I39: -5 | K39: 2244.87 | M39: 1742.45 | O39: 615 | Q39: 41 | S39: 1.83 | U39: 15 | V39: 0.01826386383
A40: 351.4 | C40: STRUCTURES AND IMPROVEMENTS - OTHER | E40: 2043-06-30 | G40: 50-S1.5 | H40: * | I40: -5 | K40: 134361.93 | M40: 57630.05 | O40: 83450 | Q40: 3762 | S40: 2.8 | U40: 22.2 | V40: 0.0279990024
A41: 352 | C41: WELLS | E41: 2043-06-30 | G41: 60-R4 | H41: * | I41: -5 | K41: 11293925.79 | M41: 6644223.07 | O41: 5214399 | Q41: 203779 | S41: 1.8 | U41: 25.6 | V41: 0.0180432388
A42: 352.2 | C42: RESERVOIRS | E42: 2043-06-30 | G42: 60-R4 | H42: * | I42: -5 | K42: 1757701.36 | M42: 1155811.82 | O42: 689775 | Q42: 26214 | S42: 1.49 | U42: 26.3 | V42: 0.01491379628
A43: 352.3 | C43: NON-RECOVERABLE NATURAL GAS | E43: 2043-06-30 | G43: SQUARE | H43: * | I43: 0 | K43: 4185430.83 | M43: 2075386.69 | O43: 2110044 | Q43: 78879 | S43: 1.88 | U43: 26.8 | V43: 0.01884608854
A44: 353 | C44: LINES | E44: 2043-06-30 | G44: 55-R4 | H44: * | I44: -20 | K44: 2676181.41 | M44: 1677916.09 | O44: 1533502 | Q44: 60162 | S44: 2.25 | U44: 25.5 | V44: 0.02248053879
A45: 354 | C45: COMPRESSOR STATION EQUIPMENT | E45: 2043-06-30 | G45: 45-R3 | H45: * | I45: -10 | K45: 17969110.13 | M45: 6442889.71 | O45: 13323131 | Q45: 550255 | S45: 3.06 | U45: 24.2 | V45: 0.03062227322
A46: 355 | C46: MEASURING AND REGULATING EQUIPMENT | E46: 2043-06-30 | G46: 25-L2 | H46: * | I46: -5 | K46: 530739.26 | M46: 247503.91 | O46: 309772 | Q46: 22361 | S46: 4.21 | U46: 13.9 | V46: 0.04213179933
A47: 356 | C47: PURIFICATION EQUIPMENT | E47: 2043-06-30 | G47: 45-R3 | H47: * | I47: -5 | K47: 2662646.77 | M47: 1060023.58 | O47: 1735756 | Q47: 72763 | S47: 2.73 | U47: 23.9 | V47: 0.02732731988
A48: 357 | C48: OTHER EQUIPMENT | E48: 2043-06-30 | G48: 30-S0 | H48: * | I48: 0 | K48: 376479.9 | M48: 27303.95 | O48: 349176 | Q48: 19740 | S48: 5.24 | U48: 17.7 | V48: 0.0524330781
C50: TOTAL UNDERGROUND STORAGE PLANT | K50: =+SUBTOTAL(9,K36:K48) -> 42322152.73 | M50: =+SUBTOTAL(9,M36:M48) -> 19778125.4 | O50: =+SUBTOTAL(9,O36:O48) -> 25730241 | Q50: =+SUBTOTAL(9,Q36:Q48) -> 1054584 | S50: =ROUND(Q50/K50*100,2) -> 2.49 | V50: 0.02491801414
C53: OTHER STORAGE PLANT
A55: 361 | C55: STRUCTURES AND IMPROVEMENTS | E55: 2044-06-30 | G55: 50-R3 | H55: * | I55: 0 | K55: 4155602.12 | M55: 1470838.98 | O55: 2684763 | Q55: 103847 | S55: 2.5 | U55: 25.9 | V55: =Q55/K55 -> 0.02498963977
A56: 362 | C56: GAS HOLDERS | E56: 2044-06-30 | G56: 40-S3 | H56: * | I56: -20 | K56: 3683221.39 | M56: 1315578 | O56: 3104288 | Q56: 128056 | S56: 3.48 | U56: 24.2 | V56: 0.03476739149
A57: 363 | C57: PURIFICATION EQUIPMENT | E57: 2044-06-30 | G57: 40-R2.5 | H57: * | I57: -5 | K57: 3984038.93 | M57: 1726879.45 | O57: 2456361 | Q57: 104630 | S57: 2.63 | U57: 23.5 | V57: 0.02626229358
A58: 364 | C58: TRANSPORTATION EQUIPMENT | E58: 2044-06-30 | G58: 25-L3 | H58: * | I58: 10 | K58: 970580.63 | M58: 584041.25 | O58: 289481 | Q58: 22562 | S58: 2.32 | U58: 12.8 | V58: 0.02324587912
C60: TOTAL OTHER STORAGE PLANT | K60: =+SUBTOTAL(9,K55:K58) -> 12793443.07 | M60: =+SUBTOTAL(9,M55:M58) -> 5097337.68 | O60: =+SUBTOTAL(9,O55:O58) -> 8534893 | Q60: =+SUBTOTAL(9,Q55:Q58) -> 359095 | S60: =ROUND(Q60/K60*100,2) -> 2.81
C63: DISTRIBUTION PLANT
A65: 374.2 | C65: EASEMENTS | G65: 65-R4 | I65: 0 | K65: 5872231.94 | M65: 119065.19 | O65: 5753167 | Q65: 92820 | S65: 1.58 | U65: 62 | V65: =Q65/K65 -> 0.01580659636
A66: 374.3 | C66: EASEMENTS - FROM TRANSMISSION | G66: 65-R4 | I66: 0 | K66: 7998815.58 | M66: 1728529.11 | O66: 6270286 | Q66: 116258 | S66: 1.45 | U66: 53.9 | V66: 0.01453440185
A67: 375 | C67: STRUCTURES AND IMPROVEMENTS | G67: 45-R3 | I67: -5 | K67: 36537811.97 | M67: 5426315.68 | O67: 32938387 | Q67: 925716 | S67: 2.53 | U67: 35.6 | V67: 0.02533583568
A68: 376.2 | C68: MAINS - PLASTIC | G68: 60-R3 | I68: -50 | K68: 1180051442 | M68: 377202716.5 | O68: 1392874446 | Q68: 28829320 | S68: 2.44 | U68: 48.3 | V68: 0.02443056208
A69: 376.4 | C69: MAINS - WRAPPED STEEL | G69: 60-R2 | I69: -50 | K69: 536417722.5 | M69: 244522090.9 | O69: 560104493 | Q69: 11880313 | S69: 2.21 | U69: 47.1 | V69: 0.02214750278
A70: 376.5 | C70: MAINS - CATHODIC PROTECTION | G70: 30-S2.5 | I70: 0 | K70: 35642748.71 | M70: 10464707.23 | O70: 25178041 | Q70: 1277060 | S70: 3.58 | U70: 19.7 | V70: 0.03582944768
A71: 378 | C71: MEASURING AND REGULATING STATION EQUIPMENT | G71: 39-S0.5 | I71: -50 | K71: 109594096.2 | M71: 31250009.49 | O71: 133141135 | Q71: 4521142 | S71: 4.13 | U71: 29.4 | V71: 0.04125351783
A72: 380.1 | C72: SERVICES - CATHODIC PROTECTION | G72: 30-S2.5 | I72: 0 | K72: 20729198.53 | M72: 6117303.98 | O72: 14611895 | Q72: 727096 | S72: 3.51 | U72: 20.1 | V72: 0.03507593402
A73: 380.2 | C73: SERVICES - PLASTIC | G73: 50-R2 | I73: -75 | K73: 962277703.5 | M73: 459884967.1 | O73: 1224101014 | Q73: 30744906 | S73: 3.2 | U73: 39.8 | V73: 0.0319501386
A74: 380.3 | C74: SERVICES - WRAPPED STEEL | G74: 50-R2 | I74: -75 | K74: 37555623.54 | M74: 33265286.78 | O74: 32457054 | Q74: 1479341 | S74: 3.94 | U74: 21.9 | V74: 0.03939066538
A75: 381 | C75: METERS | G75: 39-R2.5 | I75: -25 | K75: 79272361.52 | M75: 20328091.97 | O75: 78762360 | Q75: 3224183 | S75: 4.07 | T75: ** | U75: 24.4 | V75: 0.04067222091
A76: 382 | C76: METER INSTALLATIONS | G76: 47-S1 | I76: -10 | K76: 165961349.6 | M76: 45732149.32 | O76: 136825335 | Q76: 3735405 | S76: 2.25 | U76: 36.6 | V76: 0.02250768031
A77: 383 | C77: HOUSE REGULATORS | G77: 50-R3 | I77: 0 | K77: 16689214.72 | M77: 7624423.09 | O77: 9064792 | Q77: 240310 | S77: 1.44 | U77: 37.7 | V77: 0.01439911967
A78: 384 | C78: HOUSE REGULATOR INSTALLATIONS | G78: 50-R3 | I78: 0 | K78: 83183112.24 | M78: 25636635.87 | O78: 57546476 | Q78: 1504419 | S78: 1.81 | U78: 38.3 | V78: 0.01808563012
A79: 385 | C79: INDUSTRIAL MEASURING AND REGULATING STATION EQUIPMENT | G79: 25-R0.5 | I79: -10 | K79: 38074911.89 | M79: 1544639.92 | O79: 40337763 | Q79: 2608935 | S79: 6.85 | U79: 15.5 | V79: 0.06852110407
A80: 386 | C80: RESIDENTIAL AND COMMERCIAL WATER HEATERS AND CONVERSION BURNERS
C81: FULLY ACCRUED | G81: FULLY ACCRUED | I81: 0 | K81: 16795703.85 | M81: 16795704 | O81: 0 | Q81: 0 | S81: 0 | U81: 0
C82: AMORTIZED | G82: 10-SQ | I82: 0 | K82: 10445838.3 | M82: 3075000 | O82: 7370838 | Q82: 1044955 | S82: 10 | U82: 7.1 | V82: =Q82/K82 -> 0.1000355328
C84: TOTAL RESIDENTIAL AND COMMERCIAL WATER HEATERS AND CONVERSION BURNERS | K84: =+SUBTOTAL(9,K81:K82) -> 27241542.15 | M84: =+SUBTOTAL(9,M81:M82) -> 19870704 | O84: =+SUBTOTAL(9,O81:O82) -> 7370838 | Q84: =+SUBTOTAL(9,Q81:Q82) -> 1044955 | S84: =+ROUND(Q84/K84*100,2) -> 3.84 | U84: =+ROUND(O84/Q84,1) -> 7.1 | V84: =Q84/K84 -> 0.0383588783
A86: 387 | C86: OTHER EQUIPMENT | G86: 12-L1 | I86: 0 | K86: 5758985.84 | M86: 77865.84 | O86: 5681120 | Q86: 694087 | S86: 12.05 | U86: 8.2 | V86: =Q86/K86 -> 0.1205224356
C88: TOTAL DISTRIBUTION PLANT | K88: =+SUBTOTAL(9,K65:K86) -> 3348858872 | M88: =+SUBTOTAL(9,M65:M86) -> 1290795502 | O88: =+SUBTOTAL(9,O65:O86) -> 3763018602 | Q88: =+SUBTOTAL(9,Q65:Q86) -> 93646266 | S88: =ROUND(Q88/K88*100,2) -> 2.8
U90: =K93*V93 -> 67937
C91: GENERAL PLANT
A93: 390 | C93: STRUCTURES AND IMPROVEMENTS | G93: 40-R1.5 | I93: 0 | K93: 2445499.7 | M93: 900401.27 | O93: 1545098 | Q93: 67937 | S93: 2.78 | U93: 22.7 | V93: =Q93/K93 -> 0.02778041641
A94: 391.1 | C94: OFFICE FURNITURE AND EQUIPMENT
C95: FULLY ACCRUED | G95: FULLY ACCRUED | I95: 0 | K95: 3282777.32 | M95: 3282777.32 | O95: 0 | Q95: 0 | S95: 0 | U95: 0
C96: AMORTIZED | G96: 20-SQ | I96: 0 | K96: 3172210.01 | M96: 710000 | O96: 2462210 | Q96: 158590 | S96: 5 | U96: 15.5 | V96: =Q96/K96 -> 0.04999353747
C98: TOTAL OFFICE FURNITURE AND EQUIPMENT | K98: =+SUBTOTAL(9,K95:K96) -> 6454987.33 | M98: =+SUBTOTAL(9,M95:M96) -> 3992777.32 | O98: =+SUBTOTAL(9,O95:O96) -> 2462210 | Q98: =+SUBTOTAL(9,Q95:Q96) -> 158590 | S98: =+ROUND(Q98/K98*100,2) -> 2.46 | U98: =+ROUND(O98/Q98,1) -> 15.5 | V98: =Q98/K98 -> 0.02456859973
A100: 391.2 | C100: OFFICE FURNITURE AND EQUIPMENT - COMPUTERS | G100: 5-SQ | I100: 0 | K100: 186638.97 | M100: 113060 | O100: 73579 | Q100: 37331 | S100: 20 | U100: 2 | V100: =Q100/K100 -> 0.2000171775
A101: 392 | C101: TRANSPORTATION EQUIPMENT | G101: 12-L3 | I101: 10 | K101: 6312129.06 | M101: 4055190 | O101: 1625726 | Q101: 285990 | S101: 4.53 | U101: 5.7 | V101: 0.04530800896
A102: 393 | C102: STORES EQUIPMENT | G102: FULLY ACCRUED | I102: 0 | K102: 50148.16 | M102: 50148.16 | O102: 0 | Q102: 0 | S102: 0 | T102: *** | U102: 0
Q103: .
A104: 394 | C104: TOOLS, SHOP AND GARAGE EQUIPMENT
C105: FULLY ACCRUED | G105: FULLY ACCRUED | I105: 0 | K105: 3648171.26 | M105: 3648171.26 | O105: 0 | Q105: 0 | S105: 0 | U105: 0
C106: AMORTIZED | G106: 20-SQ | I106: 0 | K106: 7514501.83 | M106: 4016000 | O106: 3498502 | Q106: 376013 | S106: 5 | U106: 9.3 | V106: =Q106/K106 -> 0.05003831372
C108: TOTAL TOOLS, SHOP AND GARAGE EQUIPMENT | K108: =+SUBTOTAL(9,K105:K106) -> 11162673.09 | M108: =+SUBTOTAL(9,M105:M106) -> 7664171.26 | O108: =+SUBTOTAL(9,O105:O106) -> 3498502 | Q108: =+SUBTOTAL(9,Q105:Q106) -> 376013 | S108: =+ROUND(Q108/K108*100,2) -> 3.37 | U108: =+ROUND(O108/Q108,1) -> 9.3 | V108: 0.03368485281
A110: 395 | C110: LABORATORY EQUIPMENT
C111: FULLY ACCRUED | G111: FULLY ACCRUED | I111: 0 | K111: 22161 | M111: 22161 | O111: 0 | Q111: 0 | S111: 0 | U111: 0
C112: AMORTIZED | G112: 20-SQ | I112: 0 | K112: 2830609.16 | M112: 1326554 | O112: 1504055 | Q112: 141512 | S112: 5 | U112: 10.6 | V112: =Q112/K112 -> 0.04999347914
C114: TOTAL LABORATORY EQUIPMENT | K114: =+SUBTOTAL(9,K111:K112) -> 2852770.16 | M114: =+SUBTOTAL(9,M109:M112) -> 1348715 | O114: =+SUBTOTAL(9,O109:O112) -> 1504055 | Q114: =+SUBTOTAL(9,Q109:Q112) -> 141512 | S114: =+ROUND(Q114/K114*100,2) -> 4.96 | U114: =+ROUND(O114/Q114,1) -> 10.6 | V114: =Q114/K114 -> 0.04960511785
A116: 396 | C116: POWER OPERATED EQUIPMENT | G116: 14-L3 | I116: 10 | K116: 484657.89 | M116: 301721 | O116: 134471 | Q116: 31151 | S116: 6.43 | U116: 4.3 | V116: =Q116/K116 -> 0.06427420381
A117: 397 | C117: COMMUNICATION EQUIPMENT
C118: FULLY ACCRUED | G118: FULLY ACCRUED | I118: 0 | K118: 3740400.02 | M118: 3740400.02 | O118: 0 | Q118: 0 | S118: 0 | U118: 0
C119: AMORTIZED | G119: 15-SQ | I119: 0 | K119: 1317655.82 | M119: 405000 | O119: 912656 | Q119: 87932 | S119: 6.67 | U119: 10.4 | V119: =Q119/K119 -> 0.06673366342
C121: TOTAL COMMUNICATION EQUIPMENT | K121: =+SUBTOTAL(9,K118:K119) -> 5058055.84 | M121: =+SUBTOTAL(9,M118:M119) -> 4145400.02 | O121: =+SUBTOTAL(9,O118:O119) -> 912656 | Q121: =+SUBTOTAL(9,Q118:Q119) -> 87932 | S121: =+ROUND(Q121/K121*100,2) -> 1.74 | U121: =+ROUND(O121/Q121,1) -> 10.4 | V121: =Q121/K121 -> 0.01738454513
A123: 398 | C123: MISCELLANEOUS EQUIPMENT
C124: FULLY ACCRUED | G124: FULLY ACCRUED | I124: 0 | K124: 60682.07 | M124: 60682 | O124: 0 | Q124: 0 | S124: 0 | U124: 0
C125: AMORTIZED | G125: 15-SQ | I125: 0 | K125: 155624.42 | M125: 54926 | O125: 100698 | Q125: 10375 | S125: 6.67 | U125: 9.7 | V125: =Q125/K125 -> 0.06666691513
C127: TOTAL MISCELLANEOUS EQUIPMENT | K127: =+SUBTOTAL(9,K123:K125) -> 216306.49 | M127: =+SUBTOTAL(9,M123:M125) -> 115608 | O127: =+SUBTOTAL(9,O123:O125) -> 100698 | Q127: =+SUBTOTAL(9,Q123:Q125) -> 10375 | S127: =+ROUND(Q127/K127*100,2) -> 4.8 | U127: =+ROUND(O127/Q127,1) -> 9.7 | V127: =Q127/K127 -> 0.0479643491
C129: TOTAL GENERAL PLANT | K129: =+SUBTOTAL(9,K93:K128) -> 35223866.69 | M129: =+SUBTOTAL(9,M93:M128) -> 22687192.03 | O129: =+SUBTOTAL(9,O93:O128) -> 11856995 | Q129: =+SUBTOTAL(9,Q93:Q128) -> 1196831 | S129: =ROUND(Q129/K129*100,2) -> 3.4 | V129: =Q129/K129 -> 0.03397784265
C132: UNRECOVERED RESERVE TO BE AMORTIZED
A134: 386 | C134: RESIDENTIAL AND COMMERCIAL WATER HEATERS AND CONVERSION BURNERS | M134: 2059092 | Q134: =-M134/5 -> -411818.4 | R134: ****
A135: 391.1 | C135: OFFICE FURNITURE AND EQUIPMENT | M135: -1462752.08 | Q135: 292550.416 | R135: ****
A136: 391.2 | C136: OFFICE FURNITURE AND EQUIPMENT - COMPUTERS | M136: 43386.97 | Q136: -8677.394 | R136: ****
A137: 393 | C137: STORES EQUIPMENT | M137: -20559.53 | Q137: 4111.906 | R137: ****
A138: 394 | C138: TOOLS, SHOP AND GARAGE EQUIPMENT | M138: -1696386.8 | Q138: 339277.36 | R138: ****
A139: 395 | C139: LABORATORY EQUIPMENT | M139: -233715.41 | Q139: 46743.082 | R139: ****
A140: 397 | C140: COMMUNICATION EQUIPMENT | M140: -1481563.18 | Q140: 296312.636 | R140: ****
A141: 398 | C141: MISCELLANEOUS EQUIPMENT | M141: -38241.93 | Q141: 7648.386 | R141: ****
C143: TOTAL UNRECOVERED RESERVE TO BE AMORTIZED | M143: =+SUBTOTAL(9,M134:M141) -> -2830739.96 | Q143: =+SUBTOTAL(9,Q134:Q141) -> 566147.992
C146: TOTAL DEPRECIABLE PLANT | K146: =+SUBTOTAL(9,K17:K145) -> 3445782207 | M146: =+SUBTOTAL(9,M17:M145) -> 1341767371 | O146: =+SUBTOTAL(9,O17:O145) -> 3809788164 | Q146: =+SUBTOTAL(9,Q17:Q145) -> 96859457.99
C149: NONDEPRECIABLE PLANT AND ACCOUNTS NOT STUDIED
A151: 301 | C151: STRUCTURES AND IMPROVEMENTS | K151: 158691.96
A152: 302 | C152: FRANCHISES AND CONSENTS | K152: 406713.91 | M152: 169615.97
A153: 303 | C153: MISCELLANEOUS INTANGIBLE PLANT | K153: 14658160.96 | M153: 6248902.68
A154: 304 | C154: LAND AND LAND RIGHTS | K154: 153210.77
A155: 350 | C155: LAND AND LAND RIGHTS | K155: 1247232.71
A156: 350.2 | C156: RIGHT OF WAY | K156: 3436.65 | M156: 40.32
A157: 360 | C157: LAND AND LAND RIGHTS | K157: 1704569.38
A158: 374 | C158: LAND AND LAND RIGHTS | K158: 9300951.18
A159: 374.1 | C159: LAND AND LAND RIGHTS | K159: 951975.18
A160: 388 | C160: ARO | K160: 9413855.15 | M160: 606977
A161: 389 | C161: LAND AND LAND RIGHTS | K161: 121045.02
C163: TOTAL NONDEPRECIABLE PLANT | K163: =+SUBTOTAL(9,K151:K161) -> 38119842.87 | M163: =+SUBTOTAL(9,M151:M161) -> 7025535.97
C166: TOTAL GAS PLANT | K166: =+SUBTOTAL(9,K17:K165) -> 3483902049 | M166: =+SUBTOTAL(9,M17:M165) -> 1348792907 | O166: =+SUBTOTAL(9,O17:O165) -> 3809788164 | Q166: =+SUBTOTAL(9,Q17:Q165) -> 96859457.99
B169: * LIFE SPAN PROCEDURE IS USED. CURVE SHOWN IS INTERIM SURVIVOR CURVE
B170: ** FOR NEW ADDITIONS FOR AMR MODULES, THE RECOMMENDATION IS A 15-S2.5 SURVIVOR CURVE, (5) NET SALVAGE AND A 7.00% DEPRECIATION RATE. FOR NEW ADDITIONS FOR AMI MODULES,
B171: THE RECOMMENDATION IS A 20-S2.5 SURVIVOR CURVE, (5) NET SALVAGE AND A 5.25% DEPRECIATION RATE.
B172: *** FOR NEW ADDITIONS FOR 393 - STORES EQUIPMENT, THE RECOMMENDATION IS A 20 YEAR AMORTIZATION PERIOD AND A 5% AMORTIZED RATE.
B173: **** 5-YEAR AMORTIZATION OF UNRECOVERED RESERVE RELATED TO AMORTIZATION ACCOUNTING.
B175: NOTE: FOR NEW ASSETS FOR THE COMPANY'S EQUIPMENT LEASE PROGRAM, THE FOLLOWING ESTIMATES AND DEPRECIATION RATES ARE RECOMMENDED:
E177: LIFE | G177: NET SALVAGE | I177: RATE
C179: RESIDENTIAL FURNACES | E179: 17-S3 | G179: 0 | I179: 5.89
C180: RESIDENTIAL WATER HEATERS | E180: 15-L3 | G180: 0 | I180: 6.67
C181: COMMERCIAL WATER HEATERS | E181: 10-L3 | G181: 0 | I181: 10

Sheet Common
E1: 4 FACTOR | F1: 4 FACTOR | K1: PROPOSED | L1: 4 FACTOR | M1: 4 FACTOR
A2: ACCOUNT | C2: ACQUISITION | D2: DEPRECIATION | E2: ALLOCATOR | F2: ALLOCATOR | G2: CURRENT | H2: CURRENT | I2: PROPOSED | J2: Difft % | K2: DEPRECIATION | L2: ALLOCATOR | M2: ALLOCATOR | N2: INCREASE
A3: NUMBER | B3: DESCRIPTION | C3: VALUE | D3: EXPENSE | E3: CURRENT ELECTRIC | F3: Current GAS | G3: RATE | H3: RATE | I3: RATE | J3: RATE | K3: EXPENSE AMOUNT | L3: PROPOSED ELECTRIC | M3: PROPOSED GAS | N3: (DECREASE)
I4: Per PSE | K4: Per PSE
E5: ='[2]3.04 & 4.04 Lead'!$E$35 -> 0.6718 | F5: ='[2]3.04 & 4.04 Lead'!$F$35 -> 0.3282 | L5: =E5 -> 0.6718 | M5: =F5 -> 0.3282 | N5: AMOUNT
A7: COMMON PLANT
A9: 389.1 | B9: LAND AND LAND RIGHTS - EASEMENTS | C9: ='Comm Study Rpt'!K17 -> 14082567.58 | D9: 281651.4 | E9: =D9*$E$5 -> 189213.4105 | F9: =D9*$F$5 -> 92437.98948 | G9: 2 | H9: =G9*0.01 -> 0.02 | I9: ='Comm Study Rpt'!V17 -> 0.01645161642 | J9: =I9/H9 -> 0.8225808209 | K9: =D9*J9 -> 231681.0398 | L9: =K9*L5 -> 155643.3225 | M9: =K9*M5 -> 76037.71727 | N9: =M9-F9 -> -16400.27221 | O9: =F9*J9-M9 -> 0
A11: 390 | B11: STRUCTURES AND IMPROVEMENTS
B12: EAST SIDE TELECOMMUNICATION OFFICE | C12: ='Comm Study Rpt'!K20 -> 25949969.49 | D12: 1338163.75 | E12: =D12*$E$5 -> 898978.4072 | F12: =D12*$F$5 -> 439185.3428 | G12: 5.27 | H12: =G12*0.01 -> 0.0527 | I12: ='Comm Study Rpt'!V20 -> 0.02947968784 | J12: =I12/H12 -> 0.559386866 | K12: =D12*J12 -> 748551.2263 | L12: =K12*$L$5 -> 502876.7138 | M12: =K12*$M$5 -> 245674.5125 | N12: =M12-F12 -> -193510.8303 | O12: =F12*J12-M12 -> 0
B13: FACTORIA | C13: ='Comm Study Rpt'!K21 -> 18065002.23 | D13: 952025.64 | E13: =D13*$E$5 -> 639570.825 | F13: =D13*$F$5 -> 312454.815 | G13: 5.27 | H13: 0.0527 | I13: ='Comm Study Rpt'!V21 -> 0.01875122935 | J13: 0.3558108036 | K13: 338741.008 | L13: =K13*$L$5 -> 227566.2092 | M13: =K13*$M$5 -> 111174.7988 | N13: -201280.0162 | O13: 0
B14: OTHER STRUCTURES | C14: ='Comm Study Rpt'!K22 -> 45026876.4 | D14: 1846509.14 | E14: 1240484.84 | F14: 606024.2997 | G14: 5.27 | H14: 0.0527 | I14: ='Comm Study Rpt'!V22 -> 0.01284874826 | J14: 0.243809265 | K14: 450196.0362 | L14: 302441.6971 | M14: 147754.3391 | N14: -458269.9607 | O14: 0
C15: =SUBTOTAL(9,C12:C14) -> 89041848.12 | D15: =SUBTOTAL(9,D12:D14) -> 4136698.53 | E15: =SUBTOTAL(9,E12:E14) -> 2779034.072 | F15: 1357664.458 | K15: =SUBTOTAL(9,K12:K14) -> 1537488.271 | L15: =SUBTOTAL(9,L12:L14) -> 1032884.62 | M15: =SUBTOTAL(9,M12:M14) -> 504603.6504 | N15: =SUBTOTAL(9,N12:N14) -> -853060.8072
A17: 391.1 | B17: OFFICE FURNITURE AND EQUIPMENT | C17: ='Comm Study Rpt'!K26 -> 21112177.85 | D17: 374011.6 | E17: =D17*$E$5 -> 251260.9929 | F17: =D17*$F$5 -> 122750.6071 | G17: 5 | H17: =G17*0.01 -> 0.05 | I17: ='Comm Study Rpt'!V26 -> 0.05004978679 | J17: =I17/H17 -> 1.000995736 | K17: =D17*J17 -> 374384.0167 | L17: =K17*$L$5 -> 251511.1824 | M17: =K17*$M$5 -> 122872.8343 | N17: =M17-F17 -> 122.2271664 | O17: =F17*J17-M17 -> 0
D18: 495366.96 | E18: =D18*$E$5 -> 332787.5237 | F18: =D18*$F$5 -> 162579.4363 | H18: 0.16438356 | I18: =I17 -> 0.05004978679 | J18: =I18/H18 -> 0.3044695393 | K18: =D18*J18 -> 150824.1501 | L18: =K18*$L$5 -> 101323.664 | M18: =K18*$M$5 -> 49500.48607 | N18: =M18-F18 -> -113078.9502
D19: =SUBTOTAL(9,D17:D18) -> 869378.56 | E19: =SUBTOTAL(9,E17:E18) -> 584048.5166 | F19: 285330.0434 | K19: =SUBTOTAL(9,K17:K18) -> 525208.1668 | L19: =SUBTOTAL(9,L17:L18) -> 352834.8465 | M19: =SUBTOTAL(9,M17:M18) -> 172373.3204 | N19: =SUBTOTAL(9,N17:N18) -> -112956.723
A21: 391.2 | B21: OFFICE FURNITURE AND EQUIPMENT - COMPUTERS | C21: ='Comm Study Rpt'!K28 -> 63265264.67 | D21: 11802785.69 | E21: =D21*$E$5 -> 7929111.427 | F21: =D21*$F$5 -> 3873674.263 | G21: 20 | H21: =G21*0.01 -> 0.2 | I21: ='Comm Study Rpt'!V28 -> 0.200026793 | J21: =I21/H21 -> 1.000133965 | K21: =D21*J21 -> 11804366.85 | L21: =K21*$L$5 -> 7930173.65 | M21: =K21*$M$5 -> 3874193.2 | N21: =M21-F21 -> 518.9367004 | O21: =F21*J21-M21 -> 0
A23: 392 | B23: TRANSPORTATION EQUIPMENT | C23: ='Comm Study Rpt'!K30 -> 4200662.92 | D23: 374440.27 | E23: =D23*$E$5 -> 251548.9734 | F23: =D23*$F$5 -> 122891.2966 | G23: 9 | H23: =G23*0.01 -> 0.09 | I23: ='Comm Study Rpt'!V30 -> 0.01432416767 | J23: =I23/H23 -> 0.1591574186 | K23: =D23*J23 -> 59594.94679 | L23: =K23*$L$5 -> 40035.88525 | M23: =K23*$M$5 -> 19559.06153 | N23: =M23-F23 -> -103332.2351 | O23: =F23*J23-M23 -> 0
D24: -353.22 | E24: =D24*$E$5 -> -237.293196 | F24: =D24*$F$5 -> -115.926804 | H24: 0.6 | I24: =I23 -> 0.01432416767 | J24: =I24/H24 -> 0.02387361279 | K24: =D24*J24 -> -8.432637509 | L24: =K24*$L$5 -> -5.665045878 | M24: =K24*$M$5 -> -2.76759163 | N24: =M24-F24 -> 113.1592124
D25: =SUBTOTAL(9,D23:D24) -> 374087.05 | E25: =SUBTOTAL(9,E23:E24) -> 251311.6802 | F25: =SUBTOTAL(9,F23:F24) -> 122775.3698 | K25: =SUBTOTAL(9,K23:K24) -> 59586.51415 | L25: =SUBTOTAL(9,L23:L24) -> 40030.2202 | M25: 19556.29394 | N25: -103219.0759
A27: 393 | B27: STORES EQUIPMENT | C27: ='Comm Study Rpt'!K31 -> 92575.77 | D27: 2683.68 | E27: =D27*$E$5 -> 1802.896224 | F27: =D27*$F$5 -> 880.783776 | G27: 5 | H27: =G27*0.01 -> 0.05 | I27: ='Comm Study Rpt'!V31 -> 0.05000228462 | J27: =I27/H27 -> 1.000045692 | K27: =D27*J27 -> 2683.802624 | L27: =K27*$L$5 -> 1802.978602 | M27: =K27*$M$5 -> 880.824021 | N27: =M27-F27 -> 0.0402450379 | O27: =F27*J27-M27 -> 0
D28: 1803.24 | E28: =D28*$E$5 -> 1211.416632 | F28: =D28*$F$5 -> 591.823368 | H28: 0.16438356 | I28: =I27 -> 0.05000228462 | J28: =I28/H28 -> 0.3041805678 | K28: =D28*J28 -> 548.510567 | L28: =K28*$L$5 -> 368.4893989 | M28: =K28*$M$5 -> 180.0211681 | N28: =M28-F28 -> -411.8021999
D29: =SUBTOTAL(9,D27:D28) -> 4486.92 | E29: =SUBTOTAL(9,E27:E28) -> 3014.312856 | F29: 1472.607144 | K29: =SUBTOTAL(9,K27:K28) -> 3232.313191 | L29: =SUBTOTAL(9,L27:L28) -> 2171.468001 | M29: =SUBTOTAL(9,M27:M28) -> 1060.845189 | N29: =SUBTOTAL(9,N27:N28) -> -411.7619549
A31: 394 | B31: TOOLS, SHOP AND GARAGE EQUIPMENT | C31: ='Comm Study Rpt'!K32 -> 1586280.5 | D31: 38814.78 | E31: =D31*$E$5 -> 26075.7692 | F31: =D31*$F$5 -> 12739.0108 | G31: 5 | H31: =G31*0.01 -> 0.05 | I31: ='Comm Study Rpt'!V32 -> 0.04995648626 | J31: =I31/H31 -> 0.9991297252 | K31: =D31*J31 -> 38781.00047 | L31: =K31*$L$5 -> 26053.07612 | M31: =K31*$M$5 -> 12727.92436 | N31: =M31-F31 -> -11.08644052 | O31: =F31*J31-M31 -> 0
D32: 21582 | E32: =D32*$E$5 -> 14498.7876 | F32: =D32*$F$5 -> 7083.2124 | H32: 0.16438356 | I32: =I31 -> 0.04995648626 | J32: =I32/H32 -> 0.3039019611 | K32: =D32*J32 -> 6558.812125 | L32: =K32*$L$5 -> 4406.209985 | M32: =K32*$M$5 -> 2152.602139 | N32: =M32-F32 -> -4930.610261
D33: =SUBTOTAL(9,D31:D32) -> 60396.78 | E33: =SUBTOTAL(9,E31:E32) -> 40574.5568 | F33: 19822.2232 | K33: =SUBTOTAL(9,K31:K32) -> 45339.8126 | L33: =SUBTOTAL(9,L31:L32) -> 30459.2861 | M33: =SUBTOTAL(9,M31:M32) -> 14880.52649 | N33: =SUBTOTAL(9,N31:N32) -> -4941.696701
A36: 396 | B36: POWER OPERATED EQUIPMENT | C36: ='Comm Study Rpt'!K33 -> 405180.32 | D36: 24310.8 | E36: =D36*$E$5 -> 16331.99544 | F36: =D36*$F$5 -> 7978.80456 | G36: 6 | H36: =G36*0.01 -> 0.06 | I36: ='Comm Study Rpt'!V33 -> 0.02839723311 | J36: =I36/H36 -> 0.4732872186 | K36: =D36*J36 -> 11505.99091 | L36: =K36*$L$5 -> 7729.724695 | M36: =K36*$M$5 -> 3776.266218 | N36: =M36-F36 -> -4202.538342 | O36: =F36*J36-M36 -> 0
A38: 397 | B38: COMMUNICATION EQUIPMENT ** | E38: =D38*$E$5 -> 0 | F38: =D38*$F$5 -> 0 | K38: =C38*(I38*0.01) -> 0 | L38: =K38*$L$5 -> 0 | M38: =K38*$M$5 -> 0 | N38: =M38-F38 -> 0
B39: FULLY ACCRUED | C39: ='Comm Study Rpt'!K36 -> 21530076.08 | D39: 3356202.05 | E39: =D39*$E$5 -> 2254696.537 | F39: =D39*$F$5 -> 1101505.513 | G39: 6.67 | H39: =G39*0.01 -> 0.0667 | I39: ='Comm Study Rpt'!V37 -> 0.06665307571 | J39: =I39/H39 -> 0.9992964874 | K39: =D39*J39 -> 3353840.919 | L39: =K39*$L$5 -> 2253110.33 | M39: =K39*$M$5 -> 1100730.59 | N39: =M39-F39 -> -774.9230522
B40: AMORTIZED | C40: ='Comm Study Rpt'!K37 -> 63796965.93 | D40: 2058324.03 | E40: =D40*$E$5 -> 1382782.083 | F40: =D40*$F$5 -> 675541.9466 | H40: 0.27906976 | I40: =I39 -> 0.06665307571 | J40: =I40/H40 -> 0.2388401943 | K40: 491610.5113 | L40: =K40*$L$5 -> 330263.9415 | M40: =K40*$M$5 -> 161346.5698 | N40: =M40-F40 -> -514195.3768 | O40: =F40*J40-M40 -> 0
D41: =SUBTOTAL(9,D39:D40) -> 5414526.08 | E41: =SUBTOTAL(9,E39:E40) -> 3637478.621 | F41: 1777047.459 | K41: =SUBTOTAL(9,K39:K40) -> 3845451.431 | L41: =SUBTOTAL(9,L39:L40) -> 2583374.271 | M41: =SUBTOTAL(9,M39:M40) -> 1262077.16 | N41: =SUBTOTAL(9,N39:N40) -> -514970.2999
A43: 398 | B43: MISCELLANEOUS EQUIPMENT | C43: ='Comm Study Rpt'!K41 -> 1051805.58 | D43: 39622.04 | E43: =D43*$E$5 -> 26618.08647 | F43: =D43*$F$5 -> 13003.95353 | G43: 6.67 | H43: =G43*0.01 -> 0.0667 | I43: ='Comm Study Rpt'!V41 -> 0.06671955477 | J43: =I43/H43 -> 1.000293175 | K43: =D43*J43 -> 39633.65619 | L43: =K43*$L$5 -> 26625.89023 | M43: =K43*$M$5 -> 13007.76596 | N43: =M43-F43 -> 3.81243318 | O43: =F43*J43-M43 -> 0
D44: 27739.68 | E44: =D44*$E$5 -> 18635.51702 | F44: =D44*$F$5 -> 9104.162976 | H44: 0.27906975 | I44: =I43 -> 0.06671955477 | J44: =I44/H44 -> 0.2390784195 | K44: =D44*J44 -> 6631.958853 | L44: =K44*$L$5 -> 4455.349957 | M44: =K44*$M$5 -> 2176.608895 | N44: =M44-F44 -> -6927.554081
D45: =SUBTOTAL(9,D43:D44) -> 67361.72 | E45: =SUBTOTAL(9,E43:E44) -> 45253.6035 | F45: 22108.1165 | K45: =SUBTOTAL(9,K43:K44) -> 46265.61504 | L45: =SUBTOTAL(9,L43:L44) -> 31081.24018 | M45: =SUBTOTAL(9,M43:M44) -> 15184.37486 | N45: =SUBTOTAL(9,N43:N44) -> -6923.741647
C47: =SUBTOTAL(9,C9:C45) -> 280165405.3 | D47: =SUBTOTAL(9,D9:D45) -> 23035683.53 | E47: =SUBTOTAL(9,E9:E45) -> 15475372.2 | F47: 7560311.335 | H47: =D47/C47 -> 0.08222172721 | I47: =K47/C47 -> 0.06464083595 | J47: =I47/H47 -> 0.7861770622 | K47: =SUBTOTAL(9,K9:K45) -> 18110126 | L47: 12166382.65 | M47: =SUBTOTAL(9,M9:M45) -> 5943743.354 | N47: -1616567.98 | O47: =F47*J47-M47 -> 0 | P47: =M47-F47-N47 -> 0
A49: 392 * | B49: Remove CC300 depreciation not booked | D49: =-D25 -> -374087.05 | E49: =D49*$E$5 -> -251311.6802 | F49: =D49*$F$5 -> -122775.3698 | K49: =-K25 -> -59586.51415 | L49: =K49*L5 -> -40030.2202 | M49: =K49*M5 -> -19556.29394 | N49: =M49-F49 -> 103219.0759
A50: 396 ** | B50: to 403 to be adjusted separately | D50: =-D36 -> -24310.8 | E50: =D50*$E$5 -> -16331.99544 | F50: =D50*$F$5 -> -7978.80456 | K50: =-K36 -> -11505.99091 | L50: =K50*L5 -> -7729.724695 | M50: =K50*M5 -> -3776.266218 | N50: =M50-F50 -> 4202.538342
B52: SUBTOTAL (excludes CC 300) | C52: =SUM(C47:C49) -> 280165405.3 | D52: =SUM(D47:D51) -> 22637285.68 | E52: =SUM(E47:E51) -> 15207728.52 | F52: =SUM(F47:F51) -> 7429557.16 | H52: =D52/C52 -> 0.08079971777 | I52: =K52/C52 -> 0.06438708404 | J52: =I52/H52 -> 0.7968726354 | K52: =SUM(K47:K51) -> 18039033.5 | L52: =SUM(L47:L51) -> 12118622.7 | M52: 5920410.794 | N52: =SUM(N47:N51) -> -1509146.366 | P52: =M52-F52-N52 -> 0
B57: UNRECOVERED RESERVE TO BE AMORTIZED
A58: 391.1 | B58: OFFICE FURNITURE AND EQUIPMENT | D58: 0 | E58: =D58*$E$5 -> 0 | F58: =D58*$F$5 -> 0 | K58: ='Comm Study Rpt'!Q48 -> 316970.158 | L58: =K58*$L$5 -> 212940.5521 | M58: =K58*$M$5 -> 104029.6059 | N58: =M58-F58 -> 104029.6059
A59: 391.2 | B59: OFFICE FURNITURE AND EQUIPMENT - COMPUTERS | D59: 0 | E59: 0 | F59: 0 | K59: ='Comm Study Rpt'!Q49 -> -151112.356 | L59: -101517.2808 | M59: -49595.07524 | N59: =M59-F59 -> -49595.07524
A60: 393 | B60: STORES EQUIPMENT | D60: 0 | E60: 0 | F60: 0 | K60: ='Comm Study Rpt'!Q50 -> 882.65 | L60: 592.96427 | M60: 289.68573 | N60: 289.68573
A61: 394 | B61: TOOLS, SHOP AND GARAGE EQUIPMENT | D61: 0 | E61: 0 | F61: 0 | K61: ='Comm Study Rpt'!Q51 -> 18966.706 | L61: 12741.83309 | M61: 6224.872909 | N61: 6224.872909
A62: 397 | B62: COMMUNICATION EQUIPMENT | D62: 0 | E62: 0 | F62: 0 | K62: ='Comm Study Rpt'!Q52 -> 1473760.044 | L62: 990071.9976 | M62: 483688.0464 | N62: 483688.0464
A63: 398 | B63: MISCELLANEOUS EQUIPMENT | D63: 0 | E63: 0 | F63: 0 | K63: ='Comm Study Rpt'!Q53 -> -1598.562 | L63: -1073.913952 | M63: -524.6480484 | N63: -524.6480484
B64: TOTAL UNRECOVERED RESERVE TO BE AMORTIZED | C64: =SUM(C58:C63) -> 0 | D64: =SUM(D58:D63) -> 0 | E64: =SUM(E58:E63) -> 0 | F64: =SUM(F58:F63) -> 0 | K64: =SUM(K58:K63) -> 1657868.64 | L64: =SUM(L58:L63) -> 1113756.152 | M64: =SUM(M58:M63) -> 544112.4876 | N64: =SUM(N58:N63) -> 544112.4876
B66: TOTAL COMMON | C66: =C52+C64 -> 280165405.3 | D66: =D52+D64 -> 22637285.68 | E66: =E52+E64 -> 15207728.52 | F66: =F52+F64 -> 7429557.16 | K66: =K52+K64 -> 19696902.14 | L66: =L52+L64 -> 13232378.86 | M66: =M52+M64 -> 6464523.282 | N66: =N52+N64 -> -965033.8783 | P66: =M66-F66-N66 -> 0
B69: NONDEPRECIABLE PLANT AND ACCOUNTS NOT STUDIED
A70: 302 | B70: FRANCHISES AND CONSENTS | C70: ='Comm Study Rpt'!K63 -> 31729.64 | D70: 2347 | E70: =D70*$E$5 -> 1576.7146 | F70: =D70*$F$5 -> 770.2854 | K70: =D70 -> 2347 | L70: =E70 -> 1576.7146 | M70: =F70 -> 770.2854 | N70: =M70-F70 -> 0
A71: 303 | B71: MISCELLANEOUS INTANGIBLE PLANT | C71: ='Comm Study Rpt'!K64 -> 166359858.7 | D71: 27664698 | E71: 18585144.12 | F71: 9079553.884 | K71: 27664698 | L71: =E71 -> 18585144.12 | M71: 9079553.884 | N71: 0
A72: 389 | B72: LAND AND LAND RIGHTS | C72: ='Comm Study Rpt'!K65 -> 28496665.23 | D72: 0 | E72: 0 | F72: 0 | K72: 0 | L72: =E72 -> 0 | M72: =F72 -> 0 | N72: 0
A73: 390.1 | B73: STRUCTURES AND IMPROVEMENTS - LEASEHOLDS | C73: ='Comm Study Rpt'!K66 -> 46511320.42 | D73: 3019656.99 | E73: 2028605.566 | F73: 991051.4241 | K73: 3019656.99 | L73: 2028605.566 | M73: 991051.4241 | N73: 0
A74: 391.21 | B74: OFFICE FURNITURE AND EQUIPMENT - COMPUTERS CAPITAL LEASE | C74: 756461.72 | D74: 0 | E74: 0 | F74: 0 | K74: 0 | L74: 0 | M74: 0 | N74: 0
A75: 392.1 | B75: AIRCRAFT | C75: ='Comm Study Rpt'!K67 -> 1509234.08 | E75: 0 | F75: 0 | K75: 0 | L75: 0 | M75: 0 | N75: 0
A76: 392.2 | B76: AIRCRAFT ENGINE REBUILD | C76: ='Comm Study Rpt'!K68 -> 832657.21 | D76: 83265.72 | E76: 55937.9107 | F76: 27327.8093 | K76: 83265.72 | L76: 55937.9107 | M76: 27327.8093 | N76: 0
A77: 399 | B77: ARO | D77: 157467 | E77: 105786.3306 | F77: 51680.6694 | K77: 157467 | L77: 105786.3306 | M77: 51680.6694 | N77: 0
B78: Needed to reconcile | E78: =D78*$E$5 -> 0 | F78: =D78*$F$5 -> 0 | K78: 0 | L78: 0 | M78: 0 | N78: 0
B79: TOTAL COMMON PLANT | C79: =SUM(C70:C78) -> 244497927 | D79: =SUM(D70:D78) -> 30927434.71 | E79: =SUM(E70:E78) -> 20777050.64 | F79: =SUM(F70:F78) -> 10150384.07 | K79: =SUM(K70:K78) -> 30927434.71 | L79: =SUM(L70:L78) -> 20777050.64 | M79: =SUM(M70:M78) -> 10150384.07 | N79: =SUM(N70:N78) -> 0
N80: =-N77 -> 0
B81: Move ARC to separate line | D81: =-D77 -> -157467 | E81: =D81*$E$5 -> -105786.3306 | F81: =D81*$F$5 -> -51680.6694 | K81: =-K77 -> -157467 | L81: =E81 -> -105786.3306 | M81: =F81 -> -51680.6694 | N81: =M81-F81 -> 0
A82: Total Amortization | C82: =SUM(C79:C81) -> 244497927 | D82: =SUM(D79:D81) -> 30769967.71 | E82: =SUM(E79:E81) -> 20671264.31 | F82: =SUM(F79:F81) -> 10098703.4 | K82: =SUM(K79:K81) -> 30769967.71 | L82: =SUM(L79:L81) -> 20671264.31 | M82: =SUM(M79:M81) -> 10098703.4 | N82: =SUM(N79:N81) -> 0
A84: Total Common Depreciation and Amortization | C84: =C66+C82 -> 524663332.3 | D84: =D66+D82 -> 53407253.39 | E84: =E66+E82 -> 35878992.83 | F84: =F66+F82 -> 17528260.56 | K84: =K66+K82 -> 50466869.85 | L84: =L66+L82 -> 33903643.16 | M84: =M66+M82 -> 16563226.68 | N84: =N66+N82 -> -965033.8783
N85: =M84-F84 -> -965033.8783
C89: =C47+C79 -> 524663332.3 | D89: =D66+D79 -> 53564720.39 | E89: =D89*E5 -> 35984779.16 | F89: =D89*F5 -> 17579941.23 | K89: =K66+K79 -> 50624336.85 | L89: =K89*L5 -> 34009429.49 | M89: =K89*M5 -> 16614907.35
L91: =L79+L66 -> 34009429.49 | M91: =M79+M66 -> 16614907.35
D92: =K89-D89 -> -2940383.541
B95: Allocate for CC 300
B96: portion of I/S | F96: Test Year | M96: Restated
A97: * C392 | B97: Transportation Equipment | E97: =F97*F101 -> 71713.8041 | F97: =F25 -> 122775.3698 | L97: =M97*M101 -> 11422.94448 | M97: =M25 -> 19556.29394 | N97: =L97-E97 -> -60290.85962
A99: ** C396 | B99: Power Operated Equipment | E99: =F99*F101 -> 4660.465923 | F99: =F36 -> 7978.80456 | L99: =M99*M101 -> 2205.738954 | M99: =M36 -> 3776.266218 | N99: =L99-E99 -> -2454.726969
F100: =SUM(F97:F99) -> 130754.1744 | M100: =SUM(M97:M99) -> 23332.56016
B101: CC 300 Depr. Exp. portion of Income Statement | F101: ='CC300'!G31 -> 0.5841057877 | M101: ='CC300'!G31 -> 0.5841057877
D102: Chk | E102: =SUM(E97:E99)-F102 -> 0 | F102: =F100*F101 -> 76374.27002 | L102: =SUM(L97:L99)-M102 -> 0 | M102: =M100*M101 -> 13628.68343
D108: NOTE - THIS APPEARS TO BE SAME AS THE ELECTRIC BUT FOR THE GAS ALLOCATION PERCENTAGE
D110: Planned coordination approach - Once the Electric Common recommendation is received from WDA - paste the results into this tab

Sheet Comm Study Rpt
A1: PUGET SOUND ENERGY
A2: COMMON PLANT
A4: TABLE 3. SUMMARY OF ESTIMATED SURVIVOR CURVES, NET SALVAGE PERCENT, ORIGINAL COST, BOOK DEPRECIATION RESERVE
A5: AND CALCULATED ANNUAL DEPRECIATION RATES AS OF SEPTEMBER 30, 2016
E8: PROBABLE | I8: NET | K8: ORIGINAL COST | M8: BOOK | Q8: CALCULATED ANNUAL | U8: COMPOSITE
E9: RETIREMENT | G9: SURVIVOR | I9: SALVAGE | K9: AS OF | M9: DEPRECIATION | O9: FUTURE | Q9: ACCRUAL | S9: ACCRUAL | U9: REMAINING
C10: ACCOUNT | E10: DATE | G10: CURVE | I10: PERCENT | K10: SEPTEMBER 30, 2016 | M10: RESERVE | O10: ACCRUALS | Q10: AMOUNT | S10: RATE | U10: LIFE
C11: -1 | E11: -2 | G11: -3 | I11: -4 | K11: -5 | M11: -6 | O11: -7 | Q11: -8 | S11: (9)=(8)/(5) | U11: (10)=(7)/(8)
C13: COMMON PLANT
C15: GENERAL PLANT
A17: 389.1 | C17: LAND AND LAND RIGHTS - EASEMENTS | G17: 60-R4 | I17: 0 | K17: 14082567.58 | M17: 1627420.52 | O17: 12455147 | Q17: 231681 | S17: 1.65 | U17: 53.8 | V17: =Q17/K17 -> 0.01645161642
A19: 390 | C19: STRUCTURES AND IMPROVEMENTS
C20: EAST SIDE TELECOMMUNICATION OFFICE | E20: 2038-06-30 | G20: 55-R2.5 | H20: * | I20: -5 | K20: 25949969.49 | M20: 11448503.36 | O20: 15798965 | Q20: 764997 | S20: 2.95 | U20: 20.7 | V20: =Q20/K20 -> 0.02947968784
C21: FACTORIA | E21: 2059-06-30 | G21: 55-R2.5 | H21: * | I21: -5 | K21: 18065002.23 | M21: 6095742.49 | O21: 12872510 | Q21: 338741 | S21: 1.88 | U21: 38 | V21: 0.01875122935
C22: OTHER STRUCTURES | G22: 55-R2.5 | I22: -5 | K22: 45026876.4 | M22: 20435306.9 | O22: 26842913 | Q22: 578539 | S22: 1.28 | U22: 46.4 | V22: 0.01284874826
C24: TOTAL STRUCTURES AND IMPROVEMENTS | K24: =SUBTOTAL(9,K20:K22) -> 89041848.12 | M24: =SUBTOTAL(9,M20:M22) -> 37979552.75 | O24: =SUBTOTAL(9,O20:O22) -> 55514388 | Q24: =SUBTOTAL(9,Q20:Q22) -> 1682277 | S24: =+ROUND(Q24/K24*100,2) -> 1.89 | U24: =+ROUND(O24/Q24,1) -> 33 | V24: 0.01889310516
A26: 391.1 | C26: OFFICE FURNITURE AND EQUIPMENT | G26: 20-SQ | I26: 0 | K26: 21112177.85 | M26: 9489789 | O26: 11622389 | Q26: 1056660 | S26: 5 | U26: 11 | V26: 0.05004978679
A28: 391.2 | C28: OFFICE FURNITURE AND EQUIPMENT - COMPUTERS | G28: 5-SQ | I28: 0 | K28: 63265264.67 | M28: 29820000 | O28: 33445265 | Q28: 12654748 | S28: 20 | U28: 2.6 | V28: 0.200026793
A30: 392 | C30: TRANSPORTATION EQUIPMENT | G30: 12-L3 | I30: 10 | K30: 4200662.92 | M30: 3393820 | O30: 386777 | Q30: 60171 | S30: 1.43 | U30: 6.4 | V30: 0.01432416767
A31: 393 | C31: STORES EQUIPMENT | G31: 20-SQ | I31: 0 | K31: 92575.77 | M31: 40154 | O31: 52422 | Q31: 4629 | S31: 5 | U31: 11.3 | V31: 0.05000228462
A32: 394 | C32: TOOLS, SHOP AND GARAGE EQUIPMENT | G32: 20-SQ | I32: 0 | K32: 1586280.5 | M32: 530000 | O32: 1056280 | Q32: 79245 | S32: 5 | U32: 13.3 | V32: 0.04995648626
A33: 396 | C33: POWER OPERATED EQUIPMENT | G33: 14-L3 | I33: 10 | K33: 405180.32 | M33: 274569 | O33: 90093 | Q33: 11506 | S33: 2.84 | U33: 7.8 | V33: 0.02839723311
A35: 397 | C35: COMMUNICATION EQUIPMENT
C36: FULLY ACCRUED | G36: FULLY ACCRUED | K36: 21530076.08 | M36: 17976165.68 | O36: 3553910 | Q36: 0 | S36: 0 | U36: 0
C37: AMORTIZED | G37: 15-SQ | I37: 0 | K37: 63796965.93 | M37: 20785000 | O37: 43011966 | Q37: 4252264 | S37: 6.67 | U37: 10.1 | V37: =Q37/K37 -> 0.06665307571
C39: TOTAL COMMUNICATION EQUIPMENT | K39: =SUBTOTAL(9,K36:K37) -> 85327042.01 | M39: =SUBTOTAL(9,M36:M37) -> 38761165.68 | O39: =SUBTOTAL(9,O36:O37) -> 46565876 | Q39: =SUBTOTAL(9,Q36:Q37) -> 4252264 | S39: =+ROUND(Q39/K39*100,2) -> 4.98 | U39: =+ROUND(O39/Q39,1) -> 11 | V39: =Q39/K39 -> 0.0498348929
A41: 398 | C41: MISCELLANEOUS EQUIPMENT | G41: 15-SQ | I41: 0 | K41: 1051805.58 | M41: 588500 | O41: 463306 | Q41: 70176 | S41: 6.67 | U41: 6.6 | V41: 0.06671955477
C43: TOTAL GENERAL PLANT | K43: =+SUBTOTAL(9,K17:K42) -> 280165405.3 | M43: =+SUBTOTAL(9,M17:M42) -> 122504970.9 | O43: =+SUBTOTAL(9,O17:O42) -> 161651943 | Q43: =+SUBTOTAL(9,Q17:Q42) -> 20103357 | S43: =ROUND(Q43/K43*100,2) -> 7.18
C46: UNRECOVERED RESERVE TO BE AMORTIZED
A48: 391.1 | C48: OFFICE FURNITURE AND EQUIPMENT | M48: -1584850.79 | Q48: =-M48/5 -> 316970.158 | R48: **
A49: 391.2 | C49: OFFICE FURNITURE AND EQUIPMENT - COMPUTERS | M49: 755561.78 | Q49: -151112.356 | R49: **
A50: 393 | C50: STORES EQUIPMENT | M50: -4413.25 | Q50: 882.65 | R50: **
A51: 394 | C51: TOOLS, SHOP AND GARAGE EQUIPMENT | M51: -94833.53 | Q51: 18966.706 | R51: **
A52: 397 | C52: COMMUNICATION EQUIPMENT | M52: -7368800.22 | Q52: 1473760.044 | R52: **
A53: 398 | C53: MISCELLANEOUS EQUIPMENT | M53: 7992.81 | Q53: -1598.562 | R53: **
C55: TOTAL UNRECOVERED RESERVE TO BE AMORTIZED | M55: =SUBTOTAL(9,M48:M53) -> -8289343.2 | Q55: =SUBTOTAL(9,Q48:Q53) -> 1657868.64
C58: TOTAL DEPRECIABLE PLANT | K58: =SUBTOTAL(9,K17:K43) -> 280165405.3 | M58: =SUBTOTAL(9,M48:M53) -> -8289343.2 | O58: =SUBTOTAL(9,O17:O43) -> 161651943 | Q58: =SUBTOTAL(9,Q17:Q43) -> 20103357
C61: NONDEPRECIABLE PLANT AND ACCOUNTS NOT STUDIED
A63: 302 | C63: FRANCHISES AND CONSENTS | K63: 31729.64 | M63: 7170.57
A64: 303 | C64: MISCELLANEOUS INTANGIBLE PLANT | K64: 166359858.7 | M64: 65088600.45
A65: 389 | C65: LAND AND LAND RIGHTS | K65: 28496665.23
A66: 390.1 | C66: STRUCTURES AND IMPROVEMENTS - LEASEHOLDS | K66: 46511320.42 | M66: 34903367.78
A67: 392.1 | C67: AIRCRAFT | K67: 1509234.08 | M67: 923765.46
A68: 392.2 | C68: AIRCRAFT ENGINE REBUILD | K68: 832657.21 | M68: 796960.84
C70: TOTAL NONDEPRECIABLE PLANT | K70: =SUBTOTAL(9,K63:K69) -> 243741465.3 | M70: =SUBTOTAL(9,M63:M69) -> 101719865.1
C73: TOTAL COMMON PLANT | K73: =SUBTOTAL(9,K17:K70) -> 523906870.6 | M73: =SUBTOTAL(9,M17:M70) -> 215935492.9 | O73: =SUBTOTAL(9,O17:O70) -> 161651943 | Q73: =SUBTOTAL(9,Q17:Q70) -> 21761225.64
B76: * LIFE SPAN PROCEDURE USED. CURVE SHOWN IS INTERIM SURVIVOR CURVE.
B77: ** 5-YEAR AMORTIZATION OF UNRECOVERED RESERVE RELATED TO AMORTIZATION ACCOUNTING.

Sheet DFIT Depr Stdy 10.06G
A1: Gas Depreciation Study October 31, 2015 through September 30, 2016
A9: Date | C9: Depreciation Expense | I9: Accummulated Depreciation | N9: Net Book Value | Q9: NBV Diff | S9: ADFIT | U9: DFIT
F10: Book Depr. | L10: BOOK
C11: Tax | E11: Book | F11: Using Tax Basis | I11: Tax | K11: Book | L11: Permanent Difference | N11: Tax | O11: Book | Q11: Book > Tax | S11: 0.35 | U11: Expense
C12: (d) = (a) x Tax | E12: (e) = (b) x 4.24% | F12: (f) = (c) x 4.24% | G12: Net Difference | U12: (o) = - curr month (n)
C13: Table | E13: ¸ 12 mos. | F13: ¸ 12 mos. | G13: (g) = (e) x (f) | I13: (h) = prior month - (d) | K13: (i) = prior month - (e) | L13: (j) = prior month - (g) | N13: (k) = (a) + (h) | O13: (l) = (b) + (i) +(j) | Q13: (m) = (k) - (l) | S13: (n) = - (m) * 35% | U13: + prior month (n)
A15: 2017-12-31 | C15: 0 | E15: 0 | F15: 0 | I15: 0 | K15: 0 | L15: 0 | N15: 0 | O15: 0 | Q15: 0 | S15: =-Q15*$S$11 -> 0 | U15: 0
A16: 2018-01-31 | C16: 0 | E16: ='Lead G'!E33/12 -> -3091578.363 | F16: 0 | G16: =E16-F16 -> -3091578.363 | K16: =-E16 -> 3091578.363 | L16: =+G16 -> -3091578.363 | O16: =K16 -> 3091578.363 | Q16: =O16-N16 -> 3091578.363 | S16: -1082052.427 | U16: =-S16 -> 1082052.427
A17: 2018-02-28 | C17: =C16 -> 0 | D17: 0 | E17: =E16 -> -3091578.363 | F17: 0 | G17: -3091578.363 | K17: =K16-E17 -> 6183156.726 | L17: =L16+G17 -> -6183156.726 | O17: 6183156.726 | Q17: 6183156.726 | S17: -2164104.854 | U17: =-S17+S16 -> 1082052.427
A18: 2018-03-31 | C18: 0 | E18: -3091578.363 | F18: 0 | G18: -3091578.363 | K18: 9274735.09 | L18: -9274735.09 | O18: 9274735.09 | Q18: 9274735.09 | S18: -3246157.281 | U18: 1082052.427
A19: 2018-04-30 | C19: 0 | E19: -3091578.363 | F19: 0 | G19: -3091578.363 | K19: 12366313.45 | L19: -12366313.45 | O19: 12366313.45 | Q19: 12366313.45 | S19: -4328209.708 | U19: 1082052.427
A20: 2018-05-31 | C20: 0 | E20: -3091578.363 | F20: 0 | G20: -3091578.363 | K20: 15457891.82 | L20: -15457891.82 | O20: 15457891.82 | Q20: 15457891.82 | S20: -5410262.136 | U20: 1082052.427
A21: 2018-06-30 | C21: 0 | E21: -3091578.363 | F21: 0 | G21: -3091578.363 | K21: 18549470.18 | L21: -18549470.18 | O21: 18549470.18 | Q21: 18549470.18 | S21: -6492314.563 | U21: 1082052.427
A22: 2018-07-31 | C22: 0 | E22: -3091578.363 | F22: 0 | G22: -3091578.363 | K22: 21641048.54 | L22: -21641048.54 | O22: 21641048.54 | Q22: 21641048.54 | S22: -7574366.99 | U22: 1082052.427
A23: 2018-08-31 | C23: 0 | E23: -3091578.363 | F23: 0 | G23: -3091578.363 | K23: 24732626.91 | L23: -24732626.91 | O23: 24732626.91 | Q23: 24732626.91 | S23: -8656419.417 | U23: 1082052.427
A24: 2018-09-30 | C24: 0 | E24: -3091578.363 | F24: 0 | G24: -3091578.363 | K24: 27824205.27 | L24: -27824205.27 | O24: 27824205.27 | Q24: 27824205.27 | S24: -9738471.844 | U24: 1082052.427
A25: 2018-10-31 | C25: 0 | E25: -3091578.363 | F25: 0 | G25: -3091578.363 | K25: 30915783.63 | L25: -30915783.63 | O25: 30915783.63 | Q25: 30915783.63 | S25: -10820524.27 | U25: 1082052.427
A26: 2018-11-30 | C26: 0 | E26: -3091578.363 | F26: 0 | G26: -3091578.363 | K26: 34007362 | L26: -34007362 | O26: 34007362 | Q26: 34007362 | S26: -11902576.7 | U26: 1082052.427
A27: 2018-12-31 | C27: 0 | E27: -3091578.363 | F27: 0 | G27: -3091578.363 | K27: =K26-E27 -> 37098940.36 | L27: -37098940.36 | O27: 37098940.36 | Q27: 37098940.36 | S27: -12984629.13 | U27: 1082052.427
A42: Total - 12ME Dec '18 | C42: =SUM(C19:C29) -> 0 | D42: =SUM(D19:D29) -> 0 | E42: =SUM(E16:E27) -> -37098940.36 | F42: =SUM(F19:F29) -> 0 | G42: =SUM(G16:G27) -> -37098940.36 | U42: =SUM(U16:U27) -> 12984629.13
A43: AMA - 12ME Dec '18 | I43: =(I15+I27+SUM(I16:I26)*2)/24 -> 0 | J43: 0 | K43: 18549470.18 | L43: -18549470.18 | M43: 0 | N43: 0 | O43: =(O15+O27+SUM(O16:O26)*2)/24 -> 18549470.18 | S43: =(S15+S27+SUM(S16:S26)*2)/24 -> -6492314.563

Sheet GAS 403.1 Depr
E1: CURRENT | H1: PROPOSED | K1: PROPOSED | L1: INCREASE
A2: ACCOUNT | C2: DEPRECIATION | D2: CURRENT | E2: RATE | F2: PROPOSED | G2: Difft % | H2: DEPRECIATION | I2: PROPOSED | J2: Difft % | K2: DEPRECIATION | L2: (DECREASE)
A3: NUMBER | B3: DESCRIPTION | C3: EXPENSE | D3: RATE | E3: % | F3: RATE | G3: RATE | H3: EXPENSE AMOUNT | I3: RATE | J3: RATE | K3: EXPENSE AMOUNT | L3: AMOUNT
F4: Per PSE | H4: Per PSE | I4: Per Public Counsel | K4: Per Public Counsel
B6: DISTRIBUTION PLANT
A7: 376.2 | B7: MAINS - PLASTIC | C7: =GAS!D143 -> 173994.92 | D7: 2.77 | E7: =D7*0.01 -> 0.0277 | F7: ='Gas Study Rpt'!V68 -> 0.02443056208 | G7: =F7/E7 -> 0.8819697502 | H7: =C7*G7 -> 153458.2561 | I7: =GAS!J50 -> 0.0182 | J7: =I7/F7 -> 0.7449685333 | K7: =H7*J7 -> 114321.572 | L7: =K7-H7 -> -39136.68414
B8: TOTAL GAS ARO ACCRETION RECOVERED IN RATES | C8: =SUM(C7) -> 173994.92 | H8: =SUM(H7) -> 153458.2561 | K8: =K7 -> 114321.572 | L8: =SUM(L7) -> -39136.68414
B10: STRUCTURES AND IMPROVEMENTS
A11: 390 | B11: SOUTH KING COMPLEX GAS PORTION | C11: =Common!F77 -> 51680.6694 | D11: 5.27 | E11: =D11*0.01 -> 0.0527 | F11: ='Comm Study Rpt'!V20 -> 0.02947968784 | G11: =F11/E11 -> 0.559386866 | I11: ='[3]Common-Elec&Gas'!$N$11 -> 0.02947968784 | J11: =I11/F11 -> 1 | K11: =H11*J11 -> 0 | L11: =K11-H11 -> 0
B12: TOTAL GAS ARO ACCRETION NOT RECOVERED IN RATES | C12: =SUM(C11) -> 51680.6694 | H12: =SUM(H11) -> 0 | K12: 0 | L12: 0
C15: =C8+C12 -> 225675.5894 | H15: =H8+H12 -> 153458.2561 | K15: 114321.572 | L15: -39136.68414

Sheet GAS Accretion
E1: CURRENT | H1: PROPOSED | K1: PROPOSED | L1: INCREASE
A2: ACCOUNT | C2: DEPRECIATION | D2: CURRENT | E2: RATE | F2: PROPOSED | G2: Difft % | H2: DEPRECIATION | I2: PROPOSED | J2: Difft % | K2: DEPRECIATION | L2: (DECREASE)
A3: NUMBER | B3: DESCRIPTION | C3: EXPENSE | D3: RATE | E3: % | F3: RATE | G3: RATE | H3: EXPENSE AMOUNT | I3: RATE | J3: RATE | K3: EXPENSE AMOUNT | L3: AMOUNT
F4: Per PSE | H4: Per PSE | I4: Per Public Counsel | K4: Per Public Counsel
B6: DISTRIBUTION PLANT
A7: 376.2 | B7: MAINS - PLASTIC | C7: ='Depr Oct15-Sep16 Revised'!U10 -> 28810.3 | D7: 2.77 | E7: =D7*0.01 -> 0.0277 | F7: ='Gas Study Rpt'!V68 -> 0.02443056208 | G7: =F7/E7 -> 0.8819697502 | H7: =C7*G7 -> 25409.81309 | I7: =GAS!J50 -> 0.0182 | J7: =I7/F7 -> 0.7449685333 | K7: =H7*J7 -> 18929.51119 | L7: =K7-H7 -> -6480.301902
B8: TOTAL GAS ARO ACCRETION RECOVERED IN RATES | C8: =SUM(C7) -> 28810.3 | H8: =SUM(H7) -> 25409.81309 | K8: =K7 -> 18929.51119 | L8: =SUM(L7) -> -6480.301902
B10: STRUCTURES AND IMPROVEMENTS
A11: 390 | B11: SOUTH KING COMPLEX GAS PORTION | C11: ='Depr Oct15-Sep16 Revised'!AG27 -> 4852.63392 | D11: 5.27 | E11: =D11*0.01 -> 0.0527 | F11: ='Comm Study Rpt'!V20 -> 0.02947968784 | G11: =F11/E11 -> 0.559386866 | I11: ='[3]Common-Elec&Gas'!$N$11 -> 0.02947968784 | J11: =I11/F11 -> 1 | K11: =H11*J11 -> 0 | L11: =K11-H11 -> 0
B12: TOTAL GAS ARO ACCRETION NOT RECOVERED IN RATES | C12: =SUM(C11) -> 4852.63392 | H12: =SUM(H11) -> 0 | K12: =K11 -> 0 | L12: 0
C15: =C8+C12 -> 33662.93392 | H15: =H8+H12 -> 25409.81309 | K15: =K8+K12 -> 18929.51119 | L15: -6480.301902

Sheet Depr Oct15-Sep16 Revised
A1: ARO | B1: Asset ID | C1: Vintage | D1: FERC | E1: 2015-10-01 | F1: 2015-11-01 | G1: 2015-12-01 | H1: 2016-01-01 | I1: 2016-02-01 | J1: 2016-03-01 | K1: 2016-04-01 | L1: 2016-05-01 | M1: 2016-06-01 | N1: 2016-07-01 | O1: 2016-08-01 | P1: 2016-09-01 | Q1: Depr. Adjustment in Dec ( note 3) | R1: Depr. Adjustment in Jan ( note 4) | S1: Total Depr. AMT Oct 15 - Sep 16 | T1: 403 Adj. Depr | U1: 411 Adj. Accretion ARO-1000 | V1: 403.1 Recalss in Nov. 2015 (note 1) | W1: Calculated (Depr + Accr.) | X1: Recorded Reclass (negative sign in PP) | Y1: Difference between Calculated vs. Recorded | AA1: Manual JE's to 411.10 | AB1: check PP report
A2: Recoverable in rates: | AB2: Depre report 1604 ARO 1000 report
AC3: 403.1 | AF3: 411.1 | AI3: Total
AC4: Electric | AD4: Gas | AE4: Total | AF4: Electric | AG4: Gas | AH4: Total | AI4: Electric | AJ4: Gas | AK4: Total
A5: Colstrip 1 & 2 Ash Pond Capping | B5: 76110 | C5: 2003 | D5: E317 | E5: 0 | F5: 0 | G5: 0 | H5: 0 | I5: 0 | J5: 0 | K5: 0 | L5: 0 | M5: 0 | N5: 0 | O5: 0 | P5: 0 | R5: -3982.36 | S5: =SUM(E5:R5) -> -3982.36 | T5: =+S5 -> -3982.36 | U5: 72109.5312 | W5: =T5+U5+V5 -> 68127.1712 | X5: =+W5 -> 68127.1712 | Y5: =+X5-W5 -> 0 | AA5: -652.5425024 | AC5: =T5 -> -3982.36 | AE5: =SUM(AC5:AD5) -> -3982.36 | AF5: =U5+AA5 -> 71456.9887 | AH5: =SUM(AF5:AG5) -> 71456.9887 | AI5: =AF5+AC5 -> 67474.6287 | AJ5: =AG5+AD5 -> 0 | AK5: 67474.6287
A6: Colstrip 3 & 4 Ash Pond Capping | B6: 76111 | C6: 2003 | D6: E317 | E6: 632.55 | F6: 632.55 | G6: 632.55 | H6: 632.55 | I6: 632.55 | J6: 632.55 | K6: 632.55 | L6: 632.55 | M6: 632.55 | N6: 632.55 | O6: 632.55 | P6: 632.55 | R6: -4216.02 | S6: 3374.58 | T6: 3374.58 | U6: 39492.68596 | W6: 42867.26596 | X6: =W6 -> 42867.26596 | Y6: 0 | AA6: -357.3820866 | AC6: =T6 -> 3374.58 | AE6: 3374.58 | AF6: =U6+AA6 -> 39135.30387 | AH6: =SUM(AF6:AG6) -> 39135.30387 | AI6: =AF6+AC6 -> 42509.88387 | AJ6: 0 | AK6: 42509.88387
A7: Distribution Wood Poles | B7: 12771690 | C7: 2005 | D7: E374 | E7: 4459.92 | F7: 4459.91 | G7: 4640.01 | H7: 4485.7 | I7: 4485.71 | J7: 4485.71 | K7: 4485.71 | L7: 4485.7 | M7: 4485.7 | N7: 4485.7 | O7: 4485.69 | P7: 4485.7 | S7: 53931.16 | T7: 53931.16 | U7: 29083.46 | W7: 83014.62 | X7: 83014.62 | Y7: 0 | AC7: 53931.16 | AE7: 53931.16 | AF7: 29083.46 | AH7: 29083.46 | AI7: 83014.62 | AJ7: 0 | AK7: 83014.62
A8: Ferndale | B8: 12971225 | C8: 2006 | D8: E347 | E8: 3167 | F8: 3167 | G8: 3184.06 | H8: 3201.18 | I8: 3201.18 | J8: 3201.18 | K8: 3201.18 | L8: 3201.18 | M8: 3201.18 | N8: 3201.18 | O8: 3201.18 | P8: 3201.18 | Q8: -9878.67 | S8: 28450.01 | T8: 28450.01 | U8: 37567.05 | V8: =C117 -> 24447.1 | W8: 90464.16 | X8: 90464.16 | Y8: 0 | AA8: 10680.03 | AC8: 28450.01 | AE8: 28450.01 | AF8: 48247.08 | AH8: 48247.08 | AI8: 76697.09 | AJ8: 0 | AK8: 76697.09
A9: Frederickson 1/Epcor | B9: 85044/45 | C9: 2006 | D9: E317 | E9: 732.97 | F9: 732.96 | G9: 732.96 | H9: 732.96 | I9: 732.97 | J9: 732.96 | K9: 732.96 | L9: 732.97 | M9: 732.96 | N9: 732.97 | O9: 732.97 | P9: 732.97 | S9: 8795.58 | T9: 8795.58 | U9: 55301.75 | W9: 64097.33 | X9: 64097.33 | Y9: 0 | AC9: 8795.58 | AE9: 8795.58 | AF9: 55301.75 | AH9: 55301.75 | AI9: 64097.33 | AJ9: 0 | AK9: 64097.33
A10: Gas Mains | B10: 12771693 | C10: 2006 | D10: G359 | E10: 12773.59 | F10: 12773.57 | G10: 14332.92 | H10: 14901.68 | I10: 14901.66 | J10: 14901.65 | K10: 14901.64 | L10: 14901.63 | M10: 14901.63 | N10: 14901.64 | O10: 14901.65 | P10: 14901.66 | S10: 173994.92 | T10: 173994.92 | U10: 28810.3 | W10: 202805.22 | X10: 202805.22 | Y10: 0 | AD10: =T10 -> 173994.92 | AE10: 173994.92 | AG10: =U10+AA10 -> 28810.3 | AH10: 28810.3 | AI10: 0 | AJ10: 202805.22 | AK10: 202805.22
A11: Hopkins Ridge Wind Project | B11: 81633 | C11: 2005 | D11: E347 | E11: 1095.91 | F11: 1095.92 | G11: 3651.16 | H11: 6212.3 | I11: 6212.32 | J11: 39810.79 | K11: 64498.11 | L11: 64498.1 | M11: 64498.03 | N11: 64498.03 | O11: 64498.04 | P11: 64498.07 | S11: 445066.78 | T11: 445066.78 | U11: 266713.8 | V11: =C118 -> -25234.39 | W11: 686546.19 | X11: 686546.19 | Y11: 0 | AC11: 445066.78 | AE11: 445066.78 | AF11: 266713.8 | AH11: 266713.8 | AI11: 711780.58 | AJ11: 0 | AK11: 711780.58
A12: Lower Snake River Wind | B12: 11193345 | C12: 2012 | D12: E347 | E12: 20371.33 | F12: 20371.35 | G12: 12524.54 | H12: 10996.88 | I12: 10996.88 | J12: 38670.69 | K12: 60759.19 | L12: 60759.25 | M12: 60759.19 | N12: 60759.28 | O12: 60759.21 | P12: 60759.24 | S12: 478487.03 | T12: 478487.03 | U12: 472792.87 | V12: =C119 -> -333212.98 | W12: 618066.92 | X12: 618066.92 | Y12: 0 | AC12: 478487.03 | AE12: 478487.03 | AF12: 472792.87 | AH12: 472792.87 | AI12: 951279.9 | AJ12: 0 | AK12: 951279.9
A13: Meteorological Towers -LSR | B13: 13997947 | C13: 2013 | D13: E347 | E13: 2047.48 | F13: 2047.48 | G13: 1101.41 | H13: 131.89 | I13: 131.9 | J13: 131.89 | K13: 131.9 | L13: 131.9 | M13: 131.89 | N13: 131.89 | O13: 131.9 | P13: 131.89 | Q13: -3923.65 | S13: 2459.77 | T13: 2459.77 | U13: 3053.11 | V13: =C120 -> 1277.62 | W13: 6790.5 | X13: 6790.5 | Y13: 0 | AA13: -178.28 | AC13: 2459.77 | AE13: 2459.77 | AF13: 2874.83 | AH13: 2874.83 | AI13: 5334.6 | AJ13: 0 | AK13: 5334.6
A14: Transmission Wood Poles | B14: 82937 | C14: 2005 | D14: E359 | E14: 4864.17 | F14: 4864.18 | G14: 5035.13 | H14: 4988.57 | I14: 9977.16 | J14: 9977.15 | K14: 9977.18 | L14: 9977.14 | M14: 9977.13 | N14: 9977.17 | O14: 9977.13 | P14: 9977.13 | S14: 99569.24 | T14: 99569.24 | U14: 133039.32 | W14: 232608.56 | X14: 232608.56 | Y14: 0 | AC14: 99569.24 | AE14: 99569.24 | AF14: 133039.32 | AH14: 133039.32 | AI14: 232608.56 | AJ14: 0 | AK14: 232608.56
A15: Wild Horse Wind Project (New) | B15: 12971222 | C15: 2013 | D15: E347 | E15: 23027.43 | F15: 23027.41 | G15: 23114.41 | H15: 23201.71 | I15: 23201.76 | J15: 23201.72 | K15: 23201.76 | L15: 23201.74 | M15: 23201.71 | N15: 23201.72 | O15: 23201.76 | P15: 23201.76 | Q15: -42011.95 | S15: 235972.94 | T15: 235972.94 | U15: 212740.68 | V15: =C121 -> 159595.63 | W15: 608309.25 | X15: 608309.25 | Y15: 0 | AA15: 53190.52 | AC15: 235972.94 | AE15: 235972.94 | AF15: 265931.2 | AH15: 265931.2 | AI15: 501904.14 | AJ15: 0 | AK15: 501904.14
A16: Transmission Wood Poles (Site ARO) | T16: 0 | U16: 40084.48 | W16: 40084.48 | Y16: -40084.48 | Z16: 2 | AC16: 0 | AE16: 0 | AF16: 40084.48 | AH16: 40084.48 | AI16: 40084.48 | AJ16: 0 | AK16: 40084.48
Y17: 0
A19: Total recoverable in rates | E19: =SUM(E3:E18) -> 73172.35 | F19: 73172.33 | G19: 68949.15 | H19: 69485.42 | I19: 74474.09 | J19: 135746.29 | K19: 182522.18 | L19: 182522.16 | M19: 182521.97 | N19: 182522.13 | O19: 182522.08 | P19: 182522.15 | Q19: -55814.27 | R19: -8198.38 | S19: 1526119.65 | T19: 1526119.65 | U19: 1390789.037 | V19: -173127.02 | W19: 2743781.667 | X19: 2703697.187 | Y19: -40084.48 | AA19: 62682.34541 | AC19: =SUM(AC5:AC18) -> 1352124.73 | AD19: =SUM(AD5:AD18) -> 173994.92 | AE19: 1526119.65 | AF19: =SUM(AF5:AF18) -> 1424661.083 | AG19: =SUM(AG5:AG18) -> 28810.3 | AH19: 1453471.383 | AI19: =SUM(AI5:AI18) -> 2776785.813 | AJ19: =SUM(AJ5:AJ18) -> 202805.22 | AK19: 2979591.033
AH20: 0
A22: Not recoverable in rates:
A24: Colstrip 1 & 2 Ash Pond Capping | B24: 76110 | C24: 2003 | D24: E317 | E24: 54257.39 | F24: 54257.42 | G24: 54257.4 | H24: 53925.47 | I24: 53592.53 | J24: 53592.48 | K24: 53592.5 | L24: 53592.58 | M24: 53592.54 | N24: 53592.54 | O24: 53592.56 | P24: 53592.59 | S24: =SUM(E24:R24) -> 645438 | T24: =S24 -> 645438 | U24: 535738.7688 | AA24: 4409.542502 | AC24: =T24 -> 645438 | AE24: =SUM(AC24:AD24) -> 645438 | AF24: =U24+AA24 -> 540148.3113 | AH24: =SUM(AF24:AG24) -> 540148.3113 | AI24: =AF24+AC24 -> 1185586.311 | AJ24: 0 | AK24: 1185586.311
A25: Colstrip 3 & 4 Ash Pond Capping | B25: 76111 | C25: 2003 | D25: E317 | E25: 58361.57 | F25: 58361.6 | G25: 58361.58 | H25: 58010.17 | I25: 57657.7 | J25: 57657.64 | K25: 57657.67 | L25: 57657.75 | M25: 57657.72 | N25: 57657.71 | O25: 57657.74 | P25: 57657.77 | S25: =SUM(E25:R25) -> 694356.62 | T25: =S25 -> 694356.62 | U25: 580610.284 | AA25: 4159.422087 | AC25: 694356.62 | AE25: =SUM(AC25:AD25) -> 694356.62 | AF25: 584769.7061 | AH25: 584769.7061 | AI25: 1279126.326 | AJ25: 0 | AK25: 1279126.326
A26: Crystal Mtn. Generator Site | B26: 13084613 | C26: 2013 | D26: E347 | E26: 2663.94 | F26: 2663.94 | G26: 2669.14 | H26: 2674.37 | I26: 2674.36 | J26: 2674.37 | K26: 2674.37 | L26: 2674.37 | M26: 2674.37 | N26: 2674.37 | O26: 2674.37 | P26: 2674.37 | Q26: -1631.4 | S26: =SUM(E26:R26) -> 30434.94 | T26: =S26 -> 30434.94 | U26: 10965.29 | V26: =C125 -> 8148.37 | AA26: 2186.73 | AC26: 30434.94 | AE26: =SUM(AC26:AD26) -> 30434.94 | AF26: 13152.02 | AH26: 13152.02 | AI26: 43586.96 | AJ26: 0 | AK26: 43586.96
A27: South King Complex | B27: 13056748 | C27: 2013 | D27: C399 | E27: 15388.83 | F27: 15388.83 | G27: 15332.73 | H27: 15275.18 | I27: 15275.18 | J27: 15275.17 | K27: 15275.17 | L27: 15275.18 | M27: 15275.18 | N27: 15275.17 | P27: 0 | Q27: 4431.59 | S27: =SUM(E27:R27) -> 157468.21 | T27: =S27 -> 157468.21 | U27: 13504.32 | V27: =C124 -> -3186.48 | AA27: 1281.28 | AC27: =(T27)*0.6718 -> 105787.1435 | AD27: =(T27)*0.3282 -> 51681.06652 | AE27: =SUM(AC27:AD27) -> 157468.21 | AF27: =(U27+AA27)*0.6718 -> 9932.96608 | AG27: =(U27+AA27)*0.3282 -> 4852.63392 | AH27: 14785.6 | AI27: 115720.1096 | AJ27: 56533.70044 | AK27: 172253.81
A29: Total not recoverable in rates | E29: =SUM(E24:E27) -> 130671.73 | F29: 130671.79 | G29: 130620.85 | H29: 129885.19 | I29: 129199.77 | J29: 129199.66 | K29: 129199.71 | L29: 129199.88 | M29: 129199.81 | N29: 129199.79 | O29: 113924.67 | P29: 113924.73 | Q29: 2800.19 | R29: 0 | S29: 1527697.77 | T29: =SUM(T24:T28) -> 1527697.77 | U29: =SUM(U24:U28) -> 1140818.663 | V29: =SUM(V24:V28) -> 4961.89 | W29: =SUM(W24:W27) -> 0 | X29: =SUM(X24:X27) -> 0 | Y29: =SUM(Y24:Y27) -> 0 | AA29: =SUM(AA24:AA27) -> 12036.97459 | AC29: =SUM(AC24:AC28) -> 1476016.703 | AD29: 51681.06652 | AE29: 1527697.77 | AF29: 1148003.004 | AG29: 4852.63392 | AH29: 1152855.637 | AI29: 2624019.707 | AJ29: 56533.70044 | AK29: 2680553.407
A31: Total ARO Depreciation | E31: =E29+E19 -> 203844.08 | F31: 203844.12 | G31: 199570 | H31: 199370.61 | I31: 203673.86 | J31: 264945.95 | K31: 311721.89 | L31: 311722.04 | M31: 311721.78 | N31: 311721.92 | O31: 296446.75 | P31: 296446.88 | Q31: -53014.08 | R31: -8198.38 | S31: 3053817.42 | T31: 3053817.42 | U31: 2531607.7 | V31: -168165.13 | W31: 2743781.667 | X31: 2703697.187 | Y31: -40084.48 | AA31: 74719.32 | AC31: =AC19+AC29 -> 2828141.433 | AD31: =AD19+AD29 -> 225675.9865 | AE31: 3053817.42 | AF31: 2572664.086 | AG31: 33662.93392 | AH31: 2606327.02 | AI31: 5400805.52 | AJ31: 259338.9204 | AK31: 5660144.44
T32: =T31+V31 -> 2885652.29 | AE32: =T31-AE31 -> 0 | AF32: ='[4]Elec Accretion'!D82-AF31 ->  | AH32: =U31+AA31-AH31 -> 0
A33: Note | AC33: =[5]Detail!$G$235-AC31 -> 0 | AD33: =[5]Detail!$H$235-AD31 -> 0 | AE33: =[5]Detail!$I$235-AE31 -> 0 | AF33: =[5]Detail!$G$240-AF31 -> 0 | AG33: =[5]Detail!$H$240-AG31 -> 0 | AH33: =[5]Detail!$I$240-AH31 -> 0
A34: 1. ARO / ARC Recoverable portion:
A36: (1) ARO Recoverable portion:
A37: - Colstrip 1&2: Although Colstrip 1&2 termination date was January 2015, reclass is needed because there is some ARO recovery built into rates. | I37: - Colstrip 3&4: Monthly recoverable accretion amount is calculated based on the original ARO liability balance & revised monthly discount rate.
A38: - Monthly recoverable accretion amount is calculated based on the original ARO liability balance & revised monthly discount.
M39: 0.002616666667 | N39: in 2015
D40: Colstirp 1&2 Monthly Discount Rate | E40: 0.002616666667 | F40: in 2015 | L40: Colstirp 3&4 Monthly Discount Rate | M40: =0.0321/12 -> 0.002675 | N40: in 2016
D41: Colstirp 1&2 Monthly Discount Rate | E41: =0.0321/12 -> 0.002675 | F41: in 2016 | J41: E311 Colstrip 3&4 Com | K41: Prior ARO balance | L41: Accretion Exp. | M41: Ending Balance
B42: E311 Colstrip 1&2 Com | C42: Prior ARO balance | D42: Accretion Exp. | E42: Ending Balance | J42: 2015-10-01 | K42: 1218780.809 | L42: =+K42*$M$39 -> 3189.143116 | M42: =+K42+L42 -> 1221969.952
B43: 2015-10-01 | C43: 2225366.935 | D43: =+C43*$E$40 -> 5823.04348 | E43: =+C43+D43 -> 2231189.979 | J43: 2015-11-01 | K43: =+M42 -> 1221969.952 | L43: =+K43*$M$39 -> 3197.48804 | M43: 1225167.44
B44: 2015-11-01 | C44: =+E43 -> 2231189.979 | D44: =+C44*$E$40 -> 5838.280444 | E44: 2237028.259 | J44: 2015-12-01 | K44: =+M43 -> 1225167.44 | L44: =+K44*$M$39 -> 3205.8548 | M44: 1228373.294
B45: 2015-12-01 | C45: =+E44 -> 2237028.259 | D45: =+C45*$E$40 -> 5853.557278 | E45: 2242881.816 | J45: 2016-01-01 | K45: 1228730.68 | L45: =+ROUND(K45*$M$40,2) -> 3286.85 | M45: 1232017.53
B46: 2016-01-01 | C46: 2243534.36 | D46: =+ROUND(C46*$E$41,2) -> 6001.45 | E46: 2249535.81 | J46: 2016-02-01 | K46: =+M45 -> 1232017.53 | L46: 3295.65 | M46: 1235313.18
B47: 2016-02-01 | C47: =+E46 -> 2249535.81 | D47: 6017.51 | E47: 2255553.32 | J47: 2016-03-01 | K47: 1235313.18 | L47: 3304.46 | M47: 1238617.64
B48: 2016-03-01 | C48: 2255553.32 | D48: 6033.61 | E48: 2261586.93 | J48: 2016-04-01 | K48: 1238617.64 | L48: 3313.3 | M48: 1241930.94
B49: 2016-04-01 | C49: 2261586.93 | D49: 6049.75 | E49: 2267636.68 | J49: 2016-05-01 | K49: 1241930.94 | L49: 3322.17 | M49: 1245253.11
B50: 2016-05-01 | C50: 2267636.68 | D50: 6065.93 | E50: 2273702.61 | J50: 2016-06-01 | K50: 1245253.11 | L50: 3331.05 | M50: 1248584.16
B51: 2016-06-01 | C51: 2273702.61 | D51: 6082.15 | E51: 2279784.76 | J51: 2016-07-01 | K51: 1248584.16 | L51: 3339.96 | M51: 1251924.12
B52: 2016-07-01 | C52: 2279784.76 | D52: 6098.42 | E52: 2285883.18 | J52: 2016-08-01 | K52: 1251924.12 | L52: 3348.9 | M52: 1255273.02
B53: 2016-08-01 | C53: 2285883.18 | D53: 6114.74 | E53: 2291997.92 | J53: 2016-09-01 | K53: 1255273.02 | L53: 3357.86 | M53: 1258630.88
B54: 2016-09-01 | C54: 2291997.92 | D54: 6131.09 | E54: 2298129.01 | J54: Total Accreation Expense | L54: =SUM(L42:L53) -> 39492.68596
B55: 2016-11-01 | C55: =+#REF! -> 
B56: 2016-12-01 | C56: =+E55 -> 
B57: Total Accreation Expense | D57: =SUM(D43:D54) -> 72109.5312
A77: (2) ARC Recoverable portion:
B78: Colstrip | C78: Prior Depr. | D78: Comments
B79: E311 Colstrip 1&2 Com (Ash Pond) | C79: N/A | D79: No monthly depreciation because original termination date was Jan. 2015 & ARO is fully depreciated.
B80: E311 Colstrip 3&4 Com (Ash Pond) | C80: 632.55 | D80: Monthly depr. cost is $632.55 until Jan. 2024 ( original termination date)
A82: While verifying the accuracy of ARO liabilities, Property Accounting noted that Colstrip AROs had an incorrect inflation/ discount rate was set up on PowerPlant because CAFRF should be the average of multiple years cash outflows (3.21%) instead of CARFR averages from 2015 to 2040 (3.14%). Therefore, based on the revised inflation/ discount rate, we will adjust the monthly recoverable accretion amount. This amount is calculated based on the original ARO liability balance & revised monthly discount rate because there is some ARO recovery built into rates.
A84: Colstrip unit 1&2: Underlying Asset Adjustment
B85: Colstrip unit 3&4 ARO liability in July 2015 (recoverable in rate) | C85: 2213766.4
B86: Current monthly discount rate | C86: =3.14%/12 -> 0.002616666667
B87: Updated monthly discount rate (should be) | C87: =3.21%/12 -> 0.002675
B88: Current Discount Rate (3.14%) | E88: Updated Discount Rate (3.21%) - Should Be
A89: E311 Colstrip 3&4 Com (Ash Pond) | B89: Prior ARO balance | C89: Accretion Exp. | D89: Ending Balance | E89: Prior ARO balance | F89: Accretion Exp. | G89: Ending Balance | H89: Difference
A90: 2015-08-01 | B90: 2213766.4 | C90: 5792.688747 | D90: 2219559.089 | E90: 2213766.4 | F90: 5921.82512 | G90: 2219688.225 | H90: 129.1363733
A91: 2015-09-01 | B91: 2219559.089 | C91: 5807.846282 | D91: 2225366.935 | E91: 2219688.225 | F91: 5937.666002 | G91: 2225625.891 | H91: 129.81972
A92: 2015-10-01 | B92: 2225366.935 | C92: 5823.04348 | D92: 2231189.979 | E92: 2225625.891 | F92: 5953.549259 | G92: 2231579.44 | H92: 130.5057788
A93: 2015-11-01 | B93: 2231189.979 | C93: 5838.280444 | D93: 2237028.259 | E93: 2231579.44 | F93: 5969.475003 | G93: 2237548.915 | H93: 131.1945593
A94: 2015-12-01 | B94: 2237028.259 | C94: 5853.557278 | D94: 2242881.816 | E94: 2237548.915 | F94: 5985.443349 | G94: 2243534.359 | H94: 131.8860711
G96: Accretion Adjustment | H96: =SUM(H90:H94) -> 652.5425024
A97: Colstrip unit 3&4: Underlying Asset Adjustment
B98: Colstrip unit 3&4 ARO liability in July 2015 (recoverable in rate) | C98: 1212427.47
B99: Current monthly discount rate | C99: =3.14%/12 -> 0.002616666667
B100: Updated monthly discount rate (should be) | C100: =3.21%/12 -> 0.002675
B101: Current Discount Rate (3.14%) | E101: Updated Discount Rate (3.21%) - Should Be
A102: E311 Colstrip 3&4 Com (Ash Pond) | B102: Prior ARO balance | C102: Accretion Exp. | D102: Ending Balance | E102: Prior ARO balance | F102: Accretion Exp. | G102: Ending Balance | H102: Difference
A103: 2015-08-01 | B103: 1212427.47 | C103: 3172.518547 | D103: 1215599.989 | E103: 1212427.47 | F103: 3243.243482 | G103: 1215670.713 | H103: 70.72493575
A104: 2015-09-01 | B104: 1215599.989 | C104: 3180.81997 | D104: 1218780.809 | E104: 1215670.713 | F104: 3251.919159 | G104: 1218922.633 | H104: 71.09918854
A105: 2015-10-01 | B105: 1218780.809 | C105: 3189.143116 | D105: 1221969.952 | E105: 1218922.633 | F105: 3260.618042 | G105: 1222183.251 | H105: 71.4749267
A106: 2015-11-01 | B106: 1221969.952 | C106: 3197.48804 | D106: 1225167.44 | E106: 1222183.251 | F106: 3269.340196 | G106: 1225452.591 | H106: 71.85215547
A107: 2015-12-01 | B107: 1225167.44 | C107: 3205.8548 | D107: 1228373.294 | E107: 1225452.591 | F107: 3278.085681 | G107: 1228730.677 | H107: 72.23088012
F109: Accretion Adjustment | G109: Accretion Adjustment | H109: =SUM(H103:H107) -> 357.3820866
A111: 1. PA adjusted the accretion expense (decrease by $168,185.14) because ,after 2007 conversion, incorrect inflation/discount rate set up on PowerPlant in July 2015. In November 2015, PA found that
A112: additional JE will be needed to reclass from the underlying asset to accumulated reserve for ARO recoverable in rates (-$173,127.02).
A114: ARO Accretion Adjustment 07-2015 Due to inflation/discount rate correction
A115: ARO | C115: Add. Reclass AMT in Nov. 15 | V115: 2017 GRC Four Factor Alloacator For South King 403.1 Depr. | X115: 2017 GRC Four Factor Alloacator For South King 411.1 Depr.
A116: Recoverable in rates: | V116: Electric | W116: Gas | X116: Electric | Y116: Gas
A117: Ferndale | C117: 24447.1 | V117: ='[4]Common-Elec&Gas'!E5 ->  | W117: ='[4]Common-Elec&Gas'!F5 ->  | X117: =V117 ->  | Y117: =W117 -> 
A118: Hopkins Ridge Wind Project | C118: -25234.39
A119: Lower Snake River Wind | C119: -333212.98 | U119: Electric Portion S King Complex | V119: =(T27)*V117 ->  | X119: =U27*V117 -> 
A120: Meteorological Towers -LSR | C120: 1277.62 | U120: Gas Portion S King Complex | V120: =(T27)*W117 ->  | X120: =U27*Y117 -> 
A121: Wild Horse Wind Project (New) | C121: 159595.63 | V121: =SUM(V119:V120) ->  | X121: =SUM(X119:X120) -> 
A122: Total recoverable in rates | C122: =SUM(C117:C121) -> -173127.02 | V122: =(T27)-V121 ->  | W122: Chk | X122: =U27-X121 ->  | Y122: Chk
A123: Not recovered in rates:
A124: South King Complex | C124: -3186.48
A125: Crystal Mtn. Generator Site | C125: 8148.37
A126: Total not recovered in rates | C126: =SUM(C124:C125) -> 4961.89
A128: 2. For the Transmission Wood Poles, additional accretion of $40,084.48 will be reclassed to the underlying assets in November 2016
A129: 3. PA adjusted the depreciation expenses (decrease by $53,014.08 in December)
A130: 4. Depreciation expense was decrease by $8k because Colstrip AROs had an incorrect inflation/ discount rate was set up on PowerPlant because CAFRF should be the average of multiple years cash outflows (3.21%) instead of CARFR averages from 2015 to 2040 (3.14%). Going forward, ARO depreciation will automatically reallocate over remaining life from 2016 to 2040.

Sheet CC300
A1: 12ME Sep 2015 D&A Expense | C1: Total | E1: Electric | F1: Gas | G1: Common | I1: Check
A2: In New Depr Study | C2: =SUM(E2:G2) -> 388358848 | E2: 250591014 | F2: 114732150 | G2: 23035684
A3: Not Part of Study | C3: =SUM(E3:G3) -> 45296621.93 | E3: 11877723 | F3: 1734999 | G3: =30769970+756461.72+157468.21 -> 31683899.93 | J3: Common Includes Landis & Gyr $756,461.72 and ARO $157,468.21
A4: PP D&A Expense per 1085 Combined | C4: 433655470.4 | E4: 262468737.4 | F4: 116467149.3 | G4: =54719583.69 -> 54719583.69 | I4: =C4-E4-F4-G4 -> 0
C5: =C4-C3-C2 -> 0.4800000191 | E5: =E4-E3-E2 -> 0.400000006 | F5: =F4-F3-F2 -> 0.3199999928 | G5: -0.2400000021
A6: Not in GAAP D&A Expense
A7: CC300 WO 40309300 | C7: =SUM(E7:G7) -> -884454.47 | E7: -481479.76 | F7: -237283.35 | G7: -165691.36 | I7: =C7-E7-F7-G7 -> 0
A8: Capital Lease WO 90201001 | C8: -756461.72 | G8: =C8 -> -756461.72 | I8: =C8-E8-F8-G8 -> 0
A11: SAP Transaction
A12: 40300341 | C12: -173057.07 | F12: =C12 -> -173057.07 | I12: =C12-E12-F12-G12 -> 0 | J12: Booked as a depreciation expense in SAP, but a reserve expense in PP.
A14: Total Utility Plant D&A | C14: =SUBTOTAL(9,C4:C13) -> 431841497.6 | E14: =SUBTOTAL(9,E4:E13) -> 261987258 | F14: =SUBTOTAL(9,F4:F13) -> 116056809.2 | G14: 53797430.37 | I14: =C14-E14-F14-G14 -> 0
A16: GAAP D&A Expense - Utility Plant
A17: ***** Total Depreciation Expense | C17: 390437769.9 | E17: 252831199 | F17: 114495844.8 | G17: 23110726.1 | I17: =C17-E17-F17-G17 -> 0
A18: ** Total Amortization Expense | C18: 41403037.44 | E18: 9155368.79 | F18: 1560964.14 | G18: 30686704.51 | I18: =C18-E18-F18-G18 -> 0
A19: Total Utility Plant D&A per GAAP IS | C19: =SUBTOTAL(9,C17:C18) -> 431840807.3 | E19: =SUBTOTAL(9,E17:E18) -> 261986567.8 | F19: 116056808.9 | G19: 53797430.61 | I19: 0
A20: Check | C20: =C14-C19 -> 690.32 | E20: =E14-E19 -> 690.24 | F20: =F14-F19 -> 0.3199999928 | G20: =G14-G19 -> -0.2400000021 | I20: -3.725290298e-08
A22: Add back Accretion Expense
A23: Actual GAAP Expense - Total | C23: =SUM(E23:G23) -> -856858.48 | E23: -61849.08 | F23: -927658 | G23: 132648.6
E26: TRANSPORTATION EQUIPMENT | F26: =GAS!D85 -> 564917.75 | G26: =Common!D25 -> 374087.05
E27: POWER OPERATED EQUIPMENT | F27: =GAS!D102 -> 4679.05 | G27: =Common!D36 -> 24310.8
E28: TOTAL TRANSPORTATION & PWR EQUIPMENT | F28: =SUM(F26:F27) -> 569596.8 | G28: =SUM(G26:G27) -> 398397.85
E29: PORTION NOT IN INCOME STATEMENT | F29: =-F7 -> 237283.35 | G29: =-G7 -> 165691.36
E30: % NOT INCLUDED IN INCOME STATEMENT | F30: =F29/F28 -> 0.4165812554 | G30: =G29/G28 -> 0.4158942123
E31: % INCLUDED IN INCOME STATEMENT | F31: =1-F30 -> 0.5834187446 | G31: =1-G30 -> 0.5841057877
